Workbook

Sheet Disclaimer
C3: Disclaimer
C4: This tool was prepared as an account of work sponsored by an agency of the United States Government. Neither the United States Government nor any agency thereof, nor any of their employees, makes any warranty, express or implied, or assumes any legal liability or responsibility for the accuracy, completeness, or usefulness of any information, apparatus, product, or process disclosed, or represents that its use would not infringe privately owned rights. Reference herein to any specific commercial product, process, or service by trade name, trademark, manufacturer, or otherwise, does not necessarily constitute or imply its endorsement, recommendation, or favoring by the United States Government or any agency thereof. The views and opinions of authors expressed herein do not necessarily state or reflect those of the United States Government or any agency thereof. Along with the tool, a report is also being disseminated by the U. S. Department of Energy. As such, the document was prepared in compliance with Section 515 of the Treasury and General Government Appropriations Act for Fiscal Year 2001 (Public Law 106-554) and information quality guidelines issued by the U. S. Department of Energy. Though this report does not contain "influential" information as defined in DOE's information quality guidelines or the Office of Management and Budget's Information Quality Bulletin for Peer Review (Bulletin), the study was reviewed both internally and externally prior to publication. For purposes of external review, the study benefited from the advice and comments of the members of both the life cycle analysis community and additive manufacturing experts on the methodology and utility of the tool. That panel included representatives from national laboratories, private companies, and academic institutions. As this report and tool are currently in Beta version, additional peer review and comments from experts will be sought over the next 12 months (from the Beta version release date) as the tool is further developed for a full release version. Beta version for release to America Makes membership and Federal Government use only, further distribution not permitted.
C27: For more details on the additive manufacturing life cycle methodology, guidance on the AM Energy Impacts Tool, and some case studies, please refer to the User Guidebook. The guidebook informs RD&D performers on how to perform life cycle energy impacts calculations. Please contact Kelly Visconti (E-mail: kelly.visconti@ee.doe.gov) for all comments and suggestions. Your cooperation and support is greatly appreciated.

Sheet Intro - Start
A1: AM Energy Impacts Assessment Tool (BETA V.1 - English Units)
A2: ORNL (Last Updated - 09/18/2014)
A4: Note: Please note that this tool is a BETA VERSION. It might not yet have all the functionality you would expect. Contact Kelly Visconti (E-mail: kelly.visconti@ee.doe.gov) for all comments and suggestions.
B7: User Input or Drop Down Menu
B8: Output from Calculations
B9: Energy Output
A11: Scenarios for AM Tool
A12: AM Energy Impacts Assessment Tool can be used to run the following four scenarios:
A14: Select scenario for analysis: | C14: Scenario 1
A16: Scenario # | B16: Scenario Details | C16: Approach
A17: Scenario 1 | B17: Part manufactured by conventional vs. additive manufacturing | C17: Use tabs - CM Calculator and AM Calculator (1), Outcomes in tab Results (1).
A18: Scenario 2 | B18: Additive manufacturing process A vs. process B | C18: Use tabs - AM Calculator 1 and AM Calculator 2, Outcomes in tab Results (2).
A19: Scenario 3 | B19: Additive manufacturing process with different part geometries | C19: Use tabs - AM Calculator 1 and AM Calculator 2, Outcomes in tab Results (2).
A20: Scenario 4 | B20: Additive manufacturing process with improved efficiency (efficiency 1 vs. 2) | C20: Use tabs - AM Calculator 1 and AM Calculator 2, Outcomes in tab Results (2).
A22: Note - The methodology for the tool is derived from the work of Michael Ashby [M. ASHBY], B. W. Vigon [VIGON 1992], Martin Baumers [BAUMERS 2013], Geert Bergsma [BERGSMA 2013] and some other important references listed in the References tab.
A24: Term | B24: Brief Explanation
A25: Life Cycle Analysis | B25: Life cycle analysis (LCA) is a method of determining the real energy used over the lifetime of a product, from cradle to grave. The Additive Manufacturing (AM) process and the products manufactured using the AM process have potential of reducing energy consumption in all life-cycle phases of the product. And hence, there is a need to have a consistent methodology to calculate life cycle energy consumption and savings for RD&D projects in AM that AMO supports to capture the impact of the program investments as well as additive manufacturing as a foundational technology.
A26: Primary Energy | B26: Life cycle energy consumption in various phases should be quoted in Primary Energy rather than delivered energy (or end use) units. The primary energy includes generation, transmission, and distribution losses. The primary energy (potential energy) contained in a block of coal used to fire a power station will be many times (e.g. 3.1) greater than the delivered electrical energy at a premises due to heat losses at the power plant and transmission losses in the electricity grid.
A27: Life Cycle Phases | B27: LCA includes total five phases: 1. Material, 2. Manufacturing, 3 Freight and Distribution, 4. Use, and 5. Disposal.
A28: Material Phase | B28: All the energy required to process a material (or multiple materials) into a form that can be used to fabricate a particular product. This energy consumption is also called the embodied energy of the material.
A29: Manufacturing Phase | B29: This phase includes materials processing and product fabrication. Materials Preparation/Processing - The energy required to process a raw material into a form that can be used to fabricate a particular product. For example - producing metal blocks (ingots) or sheets from molten metal or producing extruded wires from polymer material. Transport of intermediate materials is also included. Product Fabrication - The energy required for fabricating a product (using subtractive or additive process) from raw or manufactured materials. Filling/Packaging - Processes that prepare the final product for shipment and that transport the products to retail outlets.
A30: Freight and Distribution Phase | B30: This phase includes Filling/Packaging/Distribution - Processes that prepare the final product for shipment and that transport the products to retail outlets.
A31: Use Phase | B31: Begins after the distribution of products or materials for intended use and includes any activity in which the product or package may be reconditioned, maintained, or serviced to extend its useful life. For example - parts used on the aircrafts, components mounted on vehicles, etc.
A32: Disposal (End of Life) Phase | B32: Begins after the part has served its intended purpose and either will enter a new system through recycling or will enter the environment through the waste management system.
A33: Boundary of the product systems | B33: The boundary of the product system can be categorized into two primary and secondary categories. The primary, or zero-order, sequence of activities directly contributes to making, using, or disposing of the product or material. The secondary category includes auxiliary materials or processes that contribute to making or doing something that in turn is in the primary activity sequence. The current version of the tool focuses on the primary activities.

Sheet Product or Project Details
A1: AM Energy Impacts Assessment Tool - Project Details | G1: Part/Product Drawing or Picture:
A2: LCA Phase | B2: Input Parameter | C2: Unit | D2: Value | E2: Notes/Assumptions
A3: Part Information | B3: Part name | C3: Name | D3: Part name | E3: Enter part/product name.
B4: Part description | C4: Description | D4: Part description | E4: Provide brief description of the part and its application, etc.
A5: Project Information | B5: Reference Number / Project Number | C5: Number | E5: Enter reference number or project number
B6: Date | C6: mm/dd/yyyy | D6: 2014-06-13 | E6: Enter project submission date
B7: Name | C7: Name | E7: Provide PI name
B9: User Input or Drop Down Menu
B10: Output
A12: Product/Part Details:
B14: Dimensions,
B15: Conventional manufacturing process details,
B16: Additive manufacturing process details,
B17: Product drawings and process block diagrams in this space …

Sheet CM Calculator
A1: AM Energy Impacts Assessment Tool - Conventional Manufacturing Process | I1: User Input or Drop Down Menu
A2: LCA Phase | B2: Input Parameter | C2: Unit | D2: Value | E2: Tool Guidance | F2: User Notes and Assumptions | I2: Output
A3: Part Information | B3: Part name | C3: Name | D3: Part XYZ | E3: Enter part/product name manufactured by the conventional manufacturing process.
B4: Part description | C4: Description | D4: Brief description | E4: Provide brief description of the part and its application, etc.
A5: Conventional Manufacturing Process
A6: Typical life-span of the part/product manufactured using conventional method (LSCM) | C6: Years | D6: 30 | E6: Enter product life in terms of # of cycles, years, months, or days.
A7: Material | B7: Material # 1 consumed to produce final part (M1) | C7: Select | D7: ULTEM 9085 - Pellets | E7: Select material # 1 name from the drop-down list. The current version of the tool allows only two raw materials.
B8: Material # 1 amount - % of total initial mass (M1,%) | C8: % | D8: 0.8 | E8: Enter material # 1 amount as a % of total initial mass. If material # 1 amount is < 100%, tools brings up a second material option.
B9: Material # 2 consumed to produce final part (M2) | C9: Select | D9: Polyamide (nylon) | E9: If material # 1 amount is 100%, select "None", otherwise select material # 2 name from the drop-down list.
B10: Material # 2 Amount - % of total initial mass (M2,%) | C10: % | D10: =(1-D8) -> 0.2 | E10: Calculated automatically.
B11: Total input material initial mass (Minitial,CM) | C11: lb/part | D11: 0.105 | E11: Enter input material initial mass - this should include scrap, waste, and material loss during the manufacturing process.
B12: Final part mass (Mfinal,CM) | C12: lb/part | D12: 0.095 | E12: Enter final mass of the component/part after going through all the manufacturing and post-manufacturing processes.
B13: Ratio between initial material used and the weight of the final product - Conventional Manufacturing Process (Minitial,CM/ Mfinal,CM) | C13: Ratio | D13: =IF(D12>0,D11/D12,0) -> 1.105263158 | E13: The weight ratio between initial input material used for a component and the weight of the final component itself.
B14: Total engineered scrap or waste generated onsite while producing final part (Escrap) | C14: lb/part | D14: =D11-D12 -> 0.01 | E14: This is the difference between total input material initial mass and final part mass.
B15: Percent of engineered scrap recovered and recycled onsite (Escrap%,recycle) | C15: % | D15: 0 | E15: User provides a percent of total engineered scrap recovered and recycled on-site. This is different from the recycled material after end of life.
B16: Material # 1 embodied energy (primary or virgin) (EEpM,1) | C16: Btu/lb | D16: =VLOOKUP(D7,'Embodied Energy - Material'!$A$2:$E$56,4,FALSE) -> 56319.913 | E16: Embodied Energy for Material # 1 (primary or virgin) - pulled from the "Embodied Energy - Material" tab.
B17: Material # 1 embodied energy (recycled engineered scrap) (EEsM,1) | C17: Btu/lb | D17: =VLOOKUP(D7,'Embodied Energy - Material'!$A$2:$E$56,5,FALSE) -> 56319.913 | E17: Embodied Energy for Material # 1 (recycled engineered scrap) - pulled from the "Embodied Energy - Material" tab.
B18: Material # 2 embodied energy (primary or virgin) (EEpM,2) | C18: Btu/lb | D18: =VLOOKUP(D9,'Embodied Energy - Material'!$A$2:$E$56,4,FALSE) -> 52665.5675 | E18: Embodied Energy for Material # 2 (primary or virgin) - pulled from the "Embodied Energy - Material" tab.
B19: Material # 2 embodied energy (recycled engineered scrap) (EEsM,2) | C19: Btu/lb | D19: =VLOOKUP(D9,'Embodied Energy - Material'!$A$2:$E$56,5,FALSE) -> 18271.7275 | E19: Embodied Energy for Material # 2 (recycled engineered scrap) - pulled from the "Embodied Energy - Material" tab.
B20: Material Phase Energy Use per Part (M_EU_CM) | C20: Btu/part | D20: =(D8*D11-D8*(D15*D14))*D16+(D8*(D15*D14)*D17)+(D10*D11-D10*(D15*D14))*D18+(D10*(D15*D14)*D19) -> 5836.849609 | E20: The total material energy per part – the first bar of the bar chart.
A21: Manufacturing | B21: Conventional Manufacturing Process Steps (Step A): focuses on primary, secondary, and tertiary shaping and finishing processes since they are generally the most energy-intensive steps of conventional manufacturing.
B22: Primary Shaping Process (CM_PP) | C22: Select | D22: Polymers - Molding | E22: Select primary mode of material processing. Metals, typically, are cast, rolled, or forged. Polymers are molded or extruded.
B23: Primary Shaping Process Energy Intensity (EICM_PP) | C23: Btu/lb | D23: =VLOOKUP(D22,'Embodied Energy - Process'!A2:C17,3,FALSE) -> 8168.537 | E23: Energy intensity per lb of initial material for the primary shaping process - pulled from the "Embodied Energy - Process" tab.
B24: Secondary Process (machining/joining/finishing) (CM_SP) | C24: Select | D24: None | E24: Select secondary mode of material processing. Secondary processes take a shaped part and add features, join, and finish it.
B25: Secondary Process Energy Intensity (EICM_SP) | C25: Btu/lb | D25: =VLOOKUP(D24,'Embodied Energy - Process'!$A$20:$C$35,3,FALSE) -> 0 | E25: Energy intensity per lb of material removed by the secondary process - pulled from the "Embodied Energy - Process" tab.
B26: % of material removed by secondary process (MCM_SP,%) | C26: % | D26: =IF(D24="None",0,IF(D27="None",(D11-D12)/D11,0.9*(D11-D12)/D11)) -> 0 | E26: Calculated using equation = 0.9*((Total raw material initial mass - Final part mass)/Total raw material initial mass). It is assumed that 90% of the total mass difference is removed by secondary process.
B27: Tertiary Process (machining/joining/finishing) (CM_TP) | C27: Select | D27: None | E27: Select tertiary mode of material processing. Tertiary processes mainly include finishing operations like grinding.
B28: Tertiary Process Energy Intensity (EICM_TP) | C28: Btu/lb | D28: =VLOOKUP(D27,'Embodied Energy - Process'!$A$20:$C$35,3,FALSE) -> 0 | E28: Energy intensity per lb of material removed by the tertiary process - pulled from the "Embodied Energy - Process" tab.
B29: % of material removed by tertiary process (MCM_TP,%) | C29: % | D29: =IF(D27="None",0,0.1*(D11-D12)/D11) -> 0 | E29: Calculated using equation = 0.1*((Total raw material initial mass - Final part mass)/Total raw material initial mass). It is assumed that 10% of the total mass difference is removed by tertiary process.
B30: Accounting for Post-machining process or processes (Step B): Part B of manufacturing energy analysis computes energy use per part for post-machining process or processes.
B31: Enter post-machining process or processes (heat treating, stress relieving, brazing, HIP, inspection, etc.) (CM_PostM) | C31: User defined | D31: None | E31: Manually enter post-machining process or processes. Post-machining processes include heat treating, stress relieving, brazing, HIP, inspection, etc.). Care should be taken when the energy content of a secondary process is calculated based on batch processing. When the batch size changes there can be a significant change in the energy intensity per part.
B32: Enter post-machining process or processes Energy Intensity (EICM_PostM) | C32: Btu/lb | D32: 0 | E32: Provide post-machining process energy intensity. If more than one post-machining processes are involved, calculate combined energy intensity.
B33: % of material going through post-machining processes (heat treating, stress relieving, brazing, HIPing, inspection, etc.) (MCM_PostM,%) | C33: % | D33: 0 | E33: Provide % of material going through the post-machining processes. Typically, this number is going to be 100% of the final mass.
B34: Accounting for Tooling and Machine Tools (Step C): Part C of manufacturing energy analysis accounts for embodied energy of tooling and machine tools used in the conventional manufacturing process.
B35: Material used for tooling or machine tools (Mtool) | C35: Select | D35: None | E35: Please select material (e.g. tungsten carbide, high speed steel, etc.) used for tooling or machine tools from the drop-down menu.
B36: Embodied Energy per lb of tooling material (EEM,tool) | C36: Btu/lb of tooling material | D36: =VLOOKUP(D35,'Embodied Energy - Material'!$A$71:$C$80,3,FALSE) -> 0 | E36: Embodied energy per lb of tooling material - pulled from the "Embodied Energy - Material" tab. Producing carbide tools requires energy intensive materials and processes.
B37: Number of tooling or machine tools needed ( Notool) | C37: No. of tools | E37: Enter total number of tooling and machine tools needed during all the manufacturing steps.
B38: Average mass of tooling and machine tools (AMtool) | C38: lb/tool | E38: Provide average mass of tooling and machine tools used in the process.
B39: Tooling manufacturing energy intensity (includes sintering, physical vapor deposition or chemical vapor deposition) (EITool,mnf) | C39: Btu/lb of tool | D39: =IF(D37*D38>0,(3788.35*D37)/(D37*D38),0) -> 0 | E39: Estimated on the order of 947 to 1,894 Btu (1 to 2 MJ) per process per cutting insert. We will assume 2 tooling manufacturing steps and 1,894 Btu per step.
B40: Total number of parts produced during tooling lifetime. (Noparts) | C40: No. of parts/lifetime | E40: Due to their relatively long life, the energy cost of tools and tool maintenance is often amortized over numerous products, thereby making the energy impact relatively insignificant on a per part basis.
B41: Conventional manufacturing process embodied energy use (EECM) | C41: Btu/lb | D41: =IF(D35="None", D23+(D26*D25)+(D29*D28)+(D33*D32),IF((D40*D11)>0,D23+(D26*D25)+(D29*D28)+(D33*D32)+((D36*D37*D38+D37*D38*D39)/(D40*D11)), D23+(D26*D25)+(D29*D28)+(D33*D32))) -> 8168.537 | E41: Calculated embodied energy for the conventional manufacturing process by taking into consideration Manufacturing Phase Parts A, B, and C.
B42: Manufacturing energy use per Part (CM_EU) | C42: Btu/part | D42: =D11*D41 -> 857.696385 | E42: The total manufacturing energy use per part – the second bar of the bar chart.
A43: Freight and Distribution | B43: Analysis Level (FD_AL) | C43: Select | D43: Simple | E43: Select analysis level - Simple or Intermediate. Depending upon analysis level, user gets more granularity in terms of freight and distribution modes and associated energy intensities.
B44: Freight and distribution method (Primary Mode) (FDmodeprimary) | C44: Select | D44: Airplane | E44: Select freight and distribution primary mode.
B45: Freight and distribution average energy use (Primary Mode) (EIFD,primary) | C45: Btu/lb/mile | D45: =VLOOKUP(D44,'Freight or Transportation'!$A$4:$D$8,4,FALSE) -> 24.75601099 | E45: The approximate energy of transportation (primary mode) – pulled from “Freight or Transportation” Tab.
B46: Average freight and distribution distance travelled by a part by primary mode | C46: miles | D46: 12000 | E46: Provide average distance travelled by the product using the primary mode of transportation from the manufacturing site to point of use or sale. Use this for international part of the freight.
B47: Freight and distribution method (Secondary Mode) (FDmodesecondary) | C47: Select | D47: Long-Distance Truck | E47: Select freight and distribution secondary mode.
B48: Freight and distribution average energy use (Secondary Mode) (EIFD,secondary) | C48: Btu/lb/mile | D48: =VLOOKUP(D47,'Freight or Transportation'!$A$4:$D$8,4,FALSE) -> 3.062732833 | E48: The approximate energy of transportation (secondary mode) – pulled from “Freight or Transportation” Tab.
B49: Average freight and distribution distance travelled by a part by secondary mode (DISTFD,secondary) | C49: miles | D49: 4000 | E49: Provide average distance travelled by the product using the secondary mode of transportation from the manufacturing site to point of use or sale. Use this for domestic part of the freight.
B50: Freight and distribution method (Primary Mode) (FDmodeprimary) | C50: Select | D50: 32 metric ton truck - Diesel | E50: Select freight and distribution primary mode.
B51: Freight and distribution average energy use (Primary Mode) (EIFD,primary) | C51: Btu/lb.mile | D51: =VLOOKUP(D50,'Freight or Transportation'!$A$24:$C$41,3,FALSE) -> 0.650381582 | E51: The approximate energy of transportation (primary mode) – pulled from “Freight or Transportation” Tab.
B52: Average freight and distribution distance travelled by a part by primary mode (DISTFD,primary) | C52: miles/mode | D52: 1188.683 | E52: Provide average distance travelled by the product using the primary mode of transportation from the manufacturing site to point of use or sale. User can use this mode to cover international portion of the freight too.
B53: Freight and distribution method (Secondary Mode) (FDmodesecondary) | C53: Select | D53: Light goods vehicle - Diesel | E53: Select freight and distribution secondary mode.
B54: Freight and distribution average energy use (Secondary Mode) (EIFD,secondary) | C54: Btu/lb.mile | D54: =VLOOKUP(D53,'Freight or Transportation'!$A$24:$C$41,3,FALSE) -> 1.72973825 | E54: The approximate energy of transportation (secondary mode) – pulled from “Freight or Transportation” Tab.
B55: Average freight and distribution distance travelled by a part by secondary mode (DISTFD,secondary) | C55: miles/mode | D55: 2141.245 | E55: Provide average distance travelled by the product using the secondary mode of transportation from the manufacturing site to point of use or sale. User can use this mode to cover domestic portion of the freight too.
B56: Freight and distribution energy use per part (FD_EU) | C56: Btu/part | D56: =IF(D43="Simple",D12*(D45*D46+D48*D49), IF(D43="Intermediate",D12*(D51*D52+D54*D55),D12*(D51*D52+D54*D55))) -> 29385.691 | E56: The total freight and distribution energy use per part – the third bar of the bar chart.
A57: Use | B57: Typical life-span of the product manufactured using conventional method (P_Life) | C57: Years | D57: 30 | E57: Product life-span in years. If you know the product life-span in days/months/# cycles, convert it intonumber of years.
B58: Sector/application area where this part is being used (APP_Area) | C58: Select | D58: Transportation | E58: Select sector/application area from: Transportation, Commercial Buildings, Residential, Industry, and Space. Select sector/application area from: Transportation, Commercial Buildings, Residential, and Industry. Transportation sector includes cars, trucks, buses, aircrafts, and even space shuttles. The "transportation + other" scenario takes care of applications where AM product is installed on or carried by a moving vehicle and also improving energy conversion efficiency (electric to thermal, thermal to mechanical, etc.). Under this scenario, the use phase energy consumption per part is the summation of transport and energy conversion related impacts.
B59: If the use phase is in transportation sector: Products that form part of, or are carried by, a transportation system add to its mass and thereby augment its energy burden. Strategy is to minimize mass and rolling resistance if the product is part of a system that moves.
B60: Is this product part of or carried by a vehicle? (Yes/No) | C60: Select | D60: Yes | E60: Select Yes/No. If a product that form part of, or are carried by, a transportation system; select Yes, else select No.
B61: Select fuel and mobility type (Trans_Type) | C61: Select | D61: Short haul aircraft - Kerosene | E61: Select transportation or mobility mode.
B62: Average energy use (EITrans) | C62: Btu/lb.mile | D62: =VLOOKUP(D61,'Use Phase'!$A$4:$D$24,3,FALSE) -> 2.182237776 | E62: Average energy use per weight per distance – pulled from “Use Phase” Tab. In principle, average energy use by mobility type in the use phase should be different from the freight and distribution phase. Use phase energy numbers should be just the additional energy use associated with an increase in mass, whereas freight energy use should include not only the energy use associated with additional mass, but also a share of the baseline energy use needed to move the vehicle even if it were not carrying any weight.
B63: Distance travelled per day (DISTday) | C63: miles/day | D63: 2485.485 | E63: Enter usage pattern
B64: Usage (DAYSyear) | C64: days/year | D64: 200 | E64: Enter usage pattern
B65: Average energy use per lb of payload mass (only if the mobility type in cell D61 is "Spacecraft") (EIspace) | C65: Btu/lb per flight | D65: =VLOOKUP(D61,'Use Phase'!$A$4:$D$24,3,FALSE) -> 2.182237776 | E65: NASA's space shuttle consumes around 5 TJ of solid propellant and 15 TJ of hydrogen fuel to lift the 100,000 kg vehicle (including the 25,000 kg payload) to an altitude of 111 km.
B66: Number of flights per year (only if the mobility type in cell D61 is "Spacecraft") (Noflights) | C66: No. flights per year | E66: Number of shuttle flights per year.
B67: Use phase life time energy use per unit mass (UP_EI) | C67: Btu/lb | D67: =IF(D61="Spacecraft", (D65*D66*D57), (D62*D63*D64*D57)) -> 32543515.56 | E67: Calculated value.
B68: If the use phase is in other sectors: Some products are normally static but require energy to perform their function. Strategy is to increase thermal efficiency if the product is a thermal or thermo-mechanical system, or reduce electrical losses if the product is an electromechanical system.
B69: Does this product require energy to perform its function? (Yes/No) | C69: Select | D69: No | E69: Select Yes/No
B70: Please select energy conversion type (E_IO) | C70: Select | D70: Electric to Thermal | E70: Select energy in and out
B71: Average power drawn by the system while in operation (PW_Rate) | C71: KW | E71: Enter power in KW. Take into consideration full load, partial load, and standby mode power usage while calculating AVERAGE power drawn by the system. (note: 1 KW = 3412.1 Btu per hour)
B72: Approximate Usage (days per year) (DAYSyear) | C72: days/year | E72: Enter usage pattern - Take into consideration and adjust for full load, partial load, and standby modes while calculating the usage pattern.
B73: Approximate Usage (hours per day) (HOURSday) | C73: hr/day | E73: Enter usage pattern - Take into consideration and adjust for full load, partial load, and standby modes while calculating the usage pattern.
B74: Use phase energy use per part (UP_EU) | C74: Btu/part | D74: =IF(D58="Transportation",D67*D12, IF(D58="Transportation and Other Sector",D67*D12+D71*D72*D73*D57*3412.14163, D71*D72*D73*D57*3412.14163 )) -> 3091633.978 | E74: The total use phase energy use per part – the fourth bar of the bar chart.
A75: Disposal (End of Life) | B75: PRIMARY disposal method for material # 1 (DISPM1,Pmode) | C75: Select | D75: Landfill | E75: Please select primary disposal method option for material # 1 – Landfill, Combustion or incineration, Composting, Open-loop recycling, Closed-loop recycling, or Other (Re-engineering/Reuse). In open-loop recycling, products are recycled into new products that are eventually disposed of. In closed-loop recycling, products are recycled again and again into the same product.
B76: Fraction of material # 1 disposed through the selected PRIMARY disposal method (DISPM1,%, Pmode) | C76: % of final part mass | D76: 1 | E76: A fraction of material # 1 disposed using user selected primary disposal method
B77: Disposal energy use per unit mass (PRIMARY Disposal Method) - material # 1 (applicable only if open or closed-loop recycling selected - calculated) (EEsM,1 - EEpM,1) | C77: Btu/lb | D77: =D17-D16 -> 0 | E77: This is the difference between secondary (recycled) and primary (virgin) material embodied energies. Negative Btu/lb means that the manufacturing process using the recycled material shows lower burdens. Any additional material recycled is also credited to the product to reflect the good end-of-life performance of product under consideration. For simplicity, the amount of energy needed for deconstruction, sorting, processing, and shipping is not considered.
B78: Disposal energy use per unit mass (PRIMARY Disposal Method) - material # 1 (applicable for all other disposal methods except open or closed-loop recycling - user input) (EEM1,other, Pmode) | C78: Btu/lb | D78: 18271.7275 | E78: This is the amount of energy needed for disposing material 1 using the disposal method other than open or closed-loop recycling. If the disposal method is combustion, energy use per unit mass may be negative.
B79: SECONDARY disposal method for material # 1 (DISPM1,Smode) | C79: Select | D79: Landfill | E79: Please select secondary disposal method option for material # 1 – Landfill, Combustion or incineration, Composting, Open-loop recycling, Closed-loop recycling, or Other (Re-engineering/Reuse). In open-loop recycling, products are recycled into new products that are eventually disposed of. In closed-loop recycling, products are recycled again and again into the same product.
B80: Fraction of material # 1 disposed through the selected SECONDARY disposal method (DISPM1,%, Smode) | C80: % of final part mass | D80: =(1-D76) -> 0 | E80: A fraction of material # 1 disposed using user selected secondary disposal method
B81: Disposal energy use per unit mass (SECONDARY Disposal Method) - material # 1 (applicable only if open or closed-loop recycling selected - calculated) ((EEsM,1 - EEpM,1)) | C81: Btu/lb | D81: =(D17-D16) -> 0 | E81: This is the difference between secondary (recycled) and primary (virgin) material embodied energies. Negative Btu/lb means that the manufacturing process using the recycled material shows lower burdens. Any additional material recycled is also credited to the product to reflect the good end-of-life performance of product under consideration. For simplicity, the amount of energy needed for deconstruction, sorting, processing, and shipping is not considered.
B82: Disposal energy use per unit mass (SECONDARY Disposal Method) - material # 1 (applicable for all other disposal methods except open or closed-loop recycling - user input) (EEM1,other, Smode) | C82: Btu/lb | D82: 18271.7275 | E82: This is the amount of energy needed for disposing material 1 using the disposal method other than open or closed-loop recycling. If the disposal method is combustion, energy use per unit mass may be negative.
B83: Disposal (End of Life) energy use per part - Material # 1 | C83: Btu/part | D83: =IF(D75="Open-loop Recycling", D12*D8*(D76*D77),IF(D75="Closed-loop Recycling", D12*D8*(D76*D77),D12*D8*(D76*D78)))+IF(D79="Open-loop Recycling", D12*D8*(D80*D81),IF(D79="Closed-loop Recycling", D12*D8*(D80*D81),D12*D8*(D80*D82))) -> 1388.65129 | E83: The total disposal energy use per part for Material # 1. Negative energy use per part in disposal phase means that the manufacturing process using the recycled material shows lower burdens. Any additional material recycled is also credited to the product to reflect the good end-of-life performance of product under consideration.
B84: PRIMARY disposal method for material # 2 (DISPM2,Pmode) | C84: Select | D84: Open-loop Recycling | E84: Please select primary disposal method option for material # 2 – Landfill, Combustion or incineration, Composting, Open-loop recycling, Closed-loop recycling, or Other (Re-engineering/Reuse). In open-loop recycling, products are recycled into new products that are eventually disposed of. In closed-loop recycling, products are recycled again and again into the same product.
B85: Fraction of material # 2 disposed through the selected PRIMARY disposal method (DISPM2,%, Pmode) | C85: % of final part mass | D85: 0.9 | E85: A fraction of material # 2 disposed using user selected primary disposal method
B86: Disposal energy use per unit mass (PRIMARY Disposal Method) - material # 2 (applicable only if open or closed-loop recycling selected - calculated) (EEsM,2 - EEpM,2) | C86: Btu/lb | D86: =(D19-D18) -> -34393.84 | E86: This is the difference between secondary (recycled) and primary (virgin) material embodied energies. Negative Btu/lb means that the manufacturing process using the recycled material shows lower burdens. Any additional material recycled is also credited to the product to reflect the good end-of-life performance of product under consideration. For simplicity, the amount of energy needed for deconstruction, sorting, processing, and shipping is not considered.
B87: Disposal energy use per unit mass (PRIMARY Disposal Method) - material # 2 (applicable for all other disposal methods except open or closed-loop recycling - user input) (EEM2,other, Pmode) | C87: Btu/lb | D87: 1000 | E87: This is the amount of energy needed for disposing material 2 using the disposal method other than open or closed-loop recycling. If the disposal method is combustion, energy use per unit mass may be negative.
B88: SECONDARY disposal method for material # 2 (DISPM2,Smode) | C88: Select | D88: Abandon in Place | E88: Please select secondary disposal method option for material # 2 – Landfill, Combustion or incineration, Composting, Open-loop recycling, Closed-loop recycling, or Other (Re-engineering/Reuse). In open-loop recycling, products are recycled into new products that are eventually disposed of. In closed-loop recycling, products are recycled again and again into the same product.
B89: Fraction of material # 2 disposed through the selected SECONDARY disposal method (DISPM2,%, Smode) | C89: % of final part mass | D89: =(1-D85) -> 0.1 | E89: A fraction of material # 2 disposed using user selected secondary disposal method
B90: Disposal energy use per unit mass (SECONDARY Disposal Method) - material # 2 (applicable only if open or closed-loop recycling selected - calculated) ((EEsM,2 - EEpM,2)) | C90: Btu/lb | D90: =(D19-D18) -> -34393.84 | E90: This is the difference between secondary (recycled) and primary (virgin) material embodied energies. Negative Btu/lb means that the manufacturing process using the recycled material shows lower burdens. Any additional material recycled is also credited to the product to reflect the good end-of-life performance of product under consideration. For simplicity, the amount of energy needed for deconstruction, sorting, processing, and shipping is not considered.
B91: Disposal energy use per unit mass (SECONDARY Disposal Method) - material # 2 (applicable for all other disposal methods except open or closed-loop recycling - user input) (EEM2,other, Smode) | C91: Btu/lb | D91: 1000 | E91: This is the amount of energy needed for disposing material 2 using the disposal method other than open or closed-loop recycling. If the disposal method is combustion, energy use per unit mass may be negative.
B92: Disposal (End of Life) energy use per part - Material # 2 | C92: Btu/part | D92: =IF(D84="Open-loop Recycling", D12*D10*(D85*D86),IF(D84="Closed-loop Recycling", D12*D10*(D85*D86),D12*D10*(D76*D78)))+IF(D88="Open-loop Recycling", D12*D10*(D89*D90),IF(D88="Closed-loop Recycling", D12*D10*(D89*D90),D12*D10*(D89*D91))) -> -586.234664 | E92: The total disposal energy use per part for Material # 2. Negative energy use per part in disposal phase means that the manufacturing process using the recycled material shows lower burdens. Any additional material recycled is also credited to the product to reflect the good end-of-life performance of product under consideration.
B93: Disposal (End of Life) energy use per part (DISP_EU) | C93: Btu/part | D93: =IF(D8=1,D83,(D83+D92)) -> 802.416626 | E93: The total disposal energy use per part – the fifth bar of the bar chart. Negative energy use per part in disposal phase means that the manufacturing process using the recycled material shows lower burdens. Any additional material recycled is also credited to the product to reflect the good end-of-life performance of product under consideration.

Sheet AM Calculator (1)
A1: AM Energy Impacts Assessment Tool - Additive Manufacturing Process | I1: User Input or Drop Down Menu
A2: LCA Phase | B2: Input Parameter | C2: Unit | D2: Value | E2: Tool Guidance | F2: User Notes and Assumptions | I2: Output
A3: Part Information | B3: Part name | C3: Name | D3: Part XYZ | E3: Enter part/product name manufactured by the additive manufacturing process under consideration.
B4: Part description | C4: Description | D4: Brief description | E4: Provide brief description of the part and its application, etc.
A5: Additive Manufacturing Process
A6: Typical life-span of the product manufactured using the Additive Manufacturing Process (LSAM) | C6: Years | D6: 30 | E6: Enter product life in terms of # of cycles, years, months, or days.
A7: Material | B7: Additive Manufacturing Process/Technique (AMTech) | C7: Select | D7: Fused Deposition Modeling (FDM) of Polymers | E7: Select the type of additive manufacturing process to evaluate
B8: Material # 1 consumed to produce final part (M1) | C8: Select | D8: ULTEM 9085 - Extruded Filament | E8: Select material # 1 name from the drop-down list. The current version of the tool allows only two raw materials.
B9: Material # 1 Amount - % of total initial mass (M1,%) | C9: % | D9: 0.8 | E9: Enter material # 1 amount as a % of total initial mass. If material # 1 amount is < 100%, tool brings up a second material option.
B10: Material # 2 consumed to produce final part (M2) | C10: Select | D10: Polyamide (nylon) | E10: If material # 1 amount is 100%, select "None", otherwise select material # 2 name from the drop-down list.
B11: Material # 2 Amount - % of total initial mass (M2,%) | C11: % | D11: =(1-D9) -> 0.2 | E11: Calculated automatically.
B12: % Reduction in material Initial mass w.r.t. CM Process (Minitial,%Red) | C12: % | D12: =IF('Intro - Start'!C14="Scenario 1", ('CM Calculator'!$D$11-$D$14)/'CM Calculator'!$D$11,(D14-$D$14)/D14) -> 0.01904761905 | E12: Calculated automatically.
B13: % Reduction in Final part mass w.r.t. CM Process (Mfinal,%Red) | C13: % | D13: =IF('Intro - Start'!C14="Scenario 1",('CM Calculator'!$D$12-$D$15)/'CM Calculator'!$D$12,(D15-$D$15)/D15) -> 0.07368421053 | E13: Calculated automatically.
B14: Total input material initial mass (Minitial,AM) | C14: lb/part | D14: 0.103 | E14: Enter input material initial mass - this should include scrap, waste, and material loss during the manufacturing process.
B15: Final part mass (Mfinal,AM) | C15: lb/part | D15: 0.088 | E15: Enter final mass of the component/part after going through all the manufacturing and post-manufacturing processes.
B16: Ratio between initial material used and the weight of the final product - Additive Manufacturing Process (Minitial,AM/ Mfinal,AM) | C16: Ratio | D16: =IF(D15>0,D14/D15,0) -> 1.170454545 | E16: The weight ratio between initial input material used for a component and the weight of the final component itself.
B17: Total engineered scrap or waste generated onsite while producing final part (Escrap) | C17: lb/part | D17: =D14-D15 -> 0.015 | E17: This is the difference between total input material initial mass and final part mass.
B18: Percent of engineered scrap or waste material recovered and recycled onsite (Escrap%,recycle) | C18: % | D18: 0 | E18: User provides a percent of total engineered scrap or waste material recovered and recycled on-site. This is different from the recycled material after end of life.
B19: Material # 1 embodied energy (primary or virgin) (EEpM,1) | C19: Btu/lb | D19: =VLOOKUP(D8,'Embodied Energy - Material'!$A$2:$E$56,4,FALSE) -> 58469.528 | E19: Embodied Energy for Material # 1 (primary or virgin) - pulled from the "Embodied Energy - Material" tab.
B20: Material # 1 embodied energy (recycled engineered scrap) (EEsM,1) | C20: Btu/lb | D20: =VLOOKUP(D8,'Embodied Energy - Material'!$A$2:$E$56,5,FALSE) -> 58469.528 | E20: Embodied Energy for Material # 1 (secondary or recycled) - pulled from the "Embodied Energy - Material" tab.
B21: Material # 2 embodied energy (primary or virgin) (EEpM,2) | C21: Btu/lb | D21: =VLOOKUP(D10,'Embodied Energy - Material'!$A$2:$E$56,4,FALSE) -> 52665.5675 | E21: Embodied Energy for Material # 2 (primary or virgin) - pulled from the "Embodied Energy - Material" tab.
B22: Material # 2 embodied energy (recycled engineered scrap) (EEsM,2) | C22: Btu/lb | D22: =VLOOKUP(D10,'Embodied Energy - Material'!$A$2:$E$56,5,FALSE) -> 18271.7275 | E22: Embodied Energy for Material # 2 (secondary or recycled) - pulled from the "Embodied Energy - Material" tab.
B23: Raw Material Energy Use per Part (M_EU_AM) | C23: Btu/part | D23: =IF('Intro - Start'!C14="Scenario 1", ('CM Calculator'!$D$6/'AM Calculator (1)'!$D$6)*(D9*D14-D9*(D18*D17))*D19+(D9*(D18*D17)*D20)+(D11*D14-D11*(D18*D17))*D21+(D11*(D18*D17)*D22),(D9*D14-D9*(D18*D17))*D19+(D9*(D18*D17)*D20)+(D11*D14-D11*(D18*D17))*D21+(D11*(D18*D17)*D22)) -> 5902.799798 | E23: The total material energy per part – the first bar of the bar chart.
A24: Manufacturing | B24: Analysis Level (M_AL) | C24: Select | D24: Simple | E24: Analysis levels - Simple, Intermediate, and Advanced
B25: Additive manufacturing process embodied energy use (Simple Method Starts Here) (EIAM_PP) | C25: Btu/lb | D25: =VLOOKUP(D7,'Embodied Energy - Process'!A40:E50,3,FALSE) -> 76526.294 | E25: Simple method uses published data based on the type of the AM method (SLM, DMLS, EBM, LS, FDM, and Other)
B26: Secondary Process (machining/joining/finishing) (AM_SP) | C26: Select | D26: Other Secondary Process | E26: Secondary mode of material processing.
B27: Secondary Process Energy Intensity (EIAM_SP) | C27: Btu/lb | D27: =VLOOKUP(D26,'Embodied Energy - Process'!$A$20:$C$35,3,FALSE) -> 0 | E27: Embodied energy per lb processed for the secondary process.
B28: % of material removed by secondary process (MAM_SP,%) | C28: % | D28: =IF(D26="None",0,(D14-D15)/D14) -> 0.145631068 | E28: Calculated automatically.
B29: Enter post-machining process or processes (heat treating, stress relieving, brazing, HIP, inspection, etc.) (AM_PostM) | C29: User defined | D29: None | E29: Manually enter post-machining process or processes. Post-machining processes include heat treating, stress relieving, brazing, HIP, inspection, etc.). Care should be taken when the energy content of a secondary process is calculated based on batch processing. When the batch size changes there can be a significant change in the energy intensity per part.
B30: Enter post-additive manufacturing process or processes energy intensity (EIAM_PostM) | C30: Btu/lb | D30: 0 | E30: Provide post-machining process energy intensity. If multiple post-machining processes are involved, calculate combined energy intensity.
B31: % of material going through post-additive manufacturing processes (heat treating, stress relieving, brazing, HIPing, inspection, etc.) (MAM_PostM,%) | C31: % of final part mass | D31: 0 | E31: Provide % of final part mass going through the post-machining processes. Typically, this number is going to be 100%.
B32: Additive Manufacturing process embodied energy use (Simple Method Starts Here) (EIAM_PP) (EEAM,Simple) | C32: Btu/lb | D32: =D25+D28*D27+D31*D30 -> 76526.294 | E32: Embodied energy of additive manufacturing process using the simple method.
B33: Machine Model (Intermediate Method Starts Here) (AM_Machine) | C33: Enter | D33: Model A | E33: Intermediate method uses the NAME PLATE data based on the Machine Specs and part material.
B34: Total Build Time or Production Time (T_build) | C34: hr/build | D34: 10 | E34: Total production time includes machine tool cleaning, preheating, exposure, recoating, and cooling down. Total production time includes machine tool cleaning, preheating, exposure, recoating, and cooling down. Include cleaning time only if a machine needs cleaning for each cycle. However, if maintenance, cleaning, etc. takes place during non-production shifts, then do not include it here.
B35: Number of parts produced per build operation (NP) | C35: Number of parts/build | D35: 4 | E35: This steps accounts for multiple parts in a single build and its impact on energy.
B36: Average Power Level in Standby, Preheating, and Cooling Down Modes (Pstandby) | C36: kW | D36: 1.5 | E36: Take an average of energy consumption per hour in Standby, Preheating, and Cooling Down Modes. Take an average of energy consumption per hour in Standby, Preheating, and Cooling Down Modes. During preheating there will be a constant energy flow to bring the system to operating temperature, much like preheating an oven. During the build the two large power consumers will be maintaining the environmental temperature and portion of the system depositing raw material (laser, extruder, etc.). Stand-by will involve intermittent power consumption to keep the system at a holding temperature without material deposition.
B37: % of total build time the machine is in Standby, Preheating, and Cooling Down Modes (Standby%) | C37: % | D37: 0.3 | E37: Enter % of total build time the machine is in Standby, Preheating, and Cooling Down Modes.
B38: Average Energy Consumption per hour (kW) when AM machine is in production mode (Pprod) | C38: kW | D38: 4.5 | E38: Average Power Level in Heating, Exposure, and Recoating Mode.
B39: % of total build time the machine is in production mode and producing parts (Prod%) | C39: % | D39: =(1-D37) -> 0.7 | E39: Calculated. % of total build time the machine is in Heating, Exposure, and Recoating Mode.
B40: AM Process Productivity (AMProductivity) | C40: lb/hr | D40: 0.45 | E40: Enter machine productivity in terms of lbs of raw material processed per hour. This depends upon machine type, AM process type, material, the total batch volume (V) and production batch height (h).
B41: Secondary Process (machining/joining/finishing) (AM_SP) | C41: Select | D41: Other Secondary Process | E41: Secondary mode of material processing.
B42: Secondary Process Energy Intensity (EIAM_SP) | C42: Btu/lb | D42: =VLOOKUP(D41,'Embodied Energy - Process'!$A$20:$C$35,3,FALSE) -> 0 | E42: Embodied energy per lb processed for the secondary process.
B43: % of material removed by secondary process (MAM_SP,%) | C43: % | D43: =IF(D41="None",0,(D14-D15)/D14) -> 0.145631068 | E43: Calculated automatically.
B44: Enter post-machining process or processes (heat treating, stress relieving, brazing, HIP, inspection, etc.) (AM_PostM) | C44: User defined | D44: None | E44: Manually enter post-machining process or processes. Post-machining processes include heat treating, stress relieving, brazing, HIP, inspection, etc.). Care should be taken when the energy content of a secondary process is calculated based on batch processing. When the batch size changes there can be a significant change in the energy intensity per part.
B45: Enter post-additive manufacturing process or processes energy intensity (EIAM_PostM) | C45: Btu/lb | D45: 0 | E45: Provide post-machining process energy intensity. If multiple post-machining processes are involved, calculate combined energy intensity.
B46: % of material going through post-additive manufacturing processes (heat treating, stress relieving, brazing, HIPing, inspection, etc.) (MAM_PostM,%) | C46: % of final part mass | D46: 0 | E46: Provide % of final part mass going through the post-machining processes. Typically, this number is going to be 100%.
B47: Additive Manufacturing process embodied energy use (EEAM,Intermd) | C47: Btu/lb | D47: =3412.14163*((D34*D36*D37)/(D35*D14))+3412.14163*((D34*D38*D39)/(D35*D14))+(D43*D42)+(D46*D45) -> 298148.2978 | E47: Embodied energy of additive manufacturing process using the intermediate method.
B48: Build Time Estimation (Advanced Method Starts Here): The estimate for total build time, TBuild, is obtained by combining data from a hierarchy of elements of time consumption.
B49: Part name (PN_AM) | C49: Name | D49: =D3 -> Part XYZ | E49: Use the method of build time estimation and energy consumption estimation based on the part geometry, material, and machine specs. This method is documented in the article "Transparency Built in, Journal of Industrial Ecology, 2012). This is a a bottom up approach method.
B50: Number of parts produced per build operation (NP) | C50: Number of parts/build | D50: 4 | E50: This step accounts for multiple parts in a single build and its impact on energy.
B51: Fixed time consumption per build operation (Tjob) | C51: seconds/build | E51: Provide fixed time consumption per build operation irrespective of number of parts produced. For example, time required for machine atmosphere generation and machine warm-up.
B52: Fixed time consumption per layer (TPer_Layer) | C52: seconds per layer | E52: Time required for completing one layer of the material.
B53: The total number of build layers (l) | C53: layers/build | E53: Total number of layers per build operation.
B54: Total layer dependent time consumption (Tlayer) | C54: seconds/build | D54: =D52*D53 -> 0 | E54: Obtained by multiplying the fixed time consumption per layer, TLayer, by the total number of build layers l;
B55: The total build time needed for the deposition of part geometry approximated by the voxels (Tvoxel) | C55: seconds/build | E55: The summation of the time needed to process each voxel, TVoxel xyz, in a three-dimensional array representing the discretized build configuration
B56: Build Time per Part (TBuild = (TJob + TLayer + Tvoxel)/NP) | C56: seconds/part | D56: =IF(D50>0,(D51+D54+D55)/D50,0) -> 0 | E56: A voxel (volumetric pixel or Volumetric Picture Element) is a volume element, representing a value on a regular grid in three dimensional space.
B57: Energy Consumption Estimation:
B58: Fixed energy consumption per build operation (Ejob) | C58: Btu/build | E58: EJob contains all energy consumption attributable to the build job irrespective of number of parts produced per build operation, including energy consumed by the wire erosion process to remove the parts from the build plate.
B59: Time-dependent energy consumption rate (ETime_Rate) | C59: Btu/second | E59: A purely time-dependent element of power consumption must be expected in the continuous operation of the AM machine. This is denoted by the energy consumption rate ETime_Rate (measured in MJ/s), which is multiplied by TBuild to estimate total time-dependent energy consumption. Modeling ETime as a constant reflects its interpretation as a mean baseline level of energy consumption throughout the build, originating from continuously operating machine components such as cooling fans, pumps, and the control system.
B60: Time-dependent energy consumption (ETime = ETime_Rate * Tbuild) | C60: Btu/build | D60: =D59*D56 -> 0 | E60: Obtained by multiplying the time dependent energy consumption rate by the total build time.
B61: Fixed energy consumption per layer (EPer_Layer) | C61: Btu/layer | E61: Provide fixed energy consumption amount per layer.
B62: The total number of build layers (l) | C62: layers/build | D62: =D53 -> 0 | E62: Total number of layers per build operation.
B63: Total layer dependent energy consumption (Elayer) | C63: Btu/build | D63: =D61*D62 -> 0 | E63: Analogous to build time estimation, ELayer denotes fixed elements of energy consumption per build and layer, for a total number of layers, l.
B64: The energy needed for the deposition of part geometry approximated by the voxels (Evoxel) | C64: Btu/part | E64: Evoxel is the geometry-dependent energy consumption that can be obtained by adding all energy consumption associated with voxel deposition throughout the discretized workplace. Please note that EVoxel does not contain time-dependent power consumption.
B65: Build Energy Consumption per Part (EBuild = [Ejob/NP + (ETime_Rate × TBuild) + (EPer_Layer × l )/NP + Evoxel] | C65: Btu/part | D65: =IF(D50>0,((D58/D50+(D59*D56)+(D61*D62)/D50+D64)),0) -> 0 | E65: Total build energy consumption which is the summation of Ejob, Etime, Elayer, and Evoxel. Please note - fixed energy consumption per build operation is divided by number of parts produced per build operation.
B66: Manufacturing Embodied Energy Estimation:
B67: Build Energy Consumption per Part (Ebuild) | C67: Btu/part | D67: =D65 -> 0 | E67: As calculated above.
B68: Total input material initial mass (Mfinal,AM) | C68: lb/part | D68: =D14 -> 0.103 | E68: As provided above. Total input material initial mass which is going through all the manufacturing and post-manufacturing processes.
B69: Secondary Process (machining/joining/finishing) (AM_SP) | C69: Select | D69: Other Secondary Process | E69: Secondary mode of material processing.
B70: Secondary Process Energy Intensity (EIAM_SP) | C70: Btu/lb | D70: =VLOOKUP(D69,'Embodied Energy - Process'!$A$20:$C$35,3,FALSE) -> 0 | E70: Embodied energy per lb processed for the secondary process.
B71: % of material removed by secondary process (MAM_SP,%) | C71: % | D71: =IF(D69="None",0,(D14-D15)/D14) -> 0.145631068 | E71: Calculated automatically.
B72: Enter post-machining process or processes (heat treating, stress relieving, brazing, HIP, inspection, etc.) (AM_PostM) | C72: User defined | D72: None | E72: Manually enter post-machining process or processes. Post-machining processes include heat treating, stress relieving, brazing, HIP, inspection, etc.). Care should be taken when the energy content of a secondary process is calculated based on batch processing. When the batch size changes there can be a significant change in the energy intensity per part.
B73: Enter post-additive manufacturing process or processes energy intensity (EIAM_PostM) | C73: Btu/lb | D73: 0 | E73: Provide post-machining process energy intensity. If more than one post-machining processes are involved, calculate combined energy intensity.
B74: % of material going through post-additive manufacturing processes (heat treating, stress relieving, brazing, HIPing, inspection, etc.) (MAM_PostM,%) | C74: % of final part mass | D74: 0 | E74: Provide % of final part mass going through the post-machining processes. Typically, this number is going to be 100%.
B75: Additive Manufacturing process embodied energy use (EEAM,Advanced) | C75: Btu/lb | D75: =IF(D68=0,0,(D67/D68)+D71*D70+D74*D73) -> 0 | E75: This is obtained by adding build energy consumption intensity and post-additive manufacturing processes energy intensities.
B76: Manufacturing energy use per Part (AM_EU) | C76: Btu/part | D76: =IF('Intro - Start'!$C$14="Scenario 1",('CM Calculator'!$D$6/'AM Calculator (1)'!$D$6)*IF(D24="Simple",D32*(D14),IF(D24="Intermediate",D47*(D14),D75*(D14))),IF(D24="Simple",D32*(D14),IF(D24="Intermediate",D47*(D14),D75*(D14)))) -> 7882.208282 | E76: The total manufacturing energy per part – the first bar of the bar chart.
A77: Freight and Distribution | B77: Analysis Level (FD_AL) | C77: Select | D77: Simple | E77: Select analysis level - Simple or Intermediate. Intermediate level provides more granularity in terms of freight and distribution modes and associated energy intensities.
B78: Freight and distribution method (Primary Mode) (FDmodeprimary) | C78: Select | D78: Ship | E78: Select freight and distribution primary mode.
B79: Freight and distribution average energy use (Primary Mode) EIFD,primary) | C79: Btu/lb/mile | D79: =VLOOKUP(D78,'Freight or Transportation'!$A$4:$D$8,4,FALSE) -> 0.8369083567 | E79: The approximate energy of transportation (primary mode) – pulled from “Freight or Transportation” Tab.
B80: Average freight and distribution distance travelled by a part by primary mode (DISTFD,primary) | C80: miles | D80: 4000 | E80: Provide average distance travelled by the product using the primary mode of transportation from the manufacturing site to point of use or sale. Use this for international part of the freight.
B81: Freight and distribution method (Secondary Mode) (FDmodesecondary) | C81: Select | D81: Long-Distance Truck | E81: Select freight and distribution secondary mode.
B82: Freight and distribution average energy use (Secondary Mode) | C82: Btu/lb/mile | D82: =VLOOKUP(D81,'Freight or Transportation'!$A$4:$D$8,4,FALSE) -> 3.062732833 | E82: The approximate energy of transportation (secondary mode) – pulled from “Freight or Transportation” Tab.
B83: Average freight and distribution distance travelled by a part by secondary mode (DISTFD,secondary) | C83: miles | D83: 250 | E83: Provide average distance travelled by the product using the secondary mode of transportation from the manufacturing site to point of use or sale. Use this for domestic part of the freight.
B84: Freight and distribution method (Primary Mode) (FDmodeprimary) | C84: Select | D84: 32 metric ton truck - Diesel | E84: Select freight and distribution primary mode.
B85: Freight and distribution average energy use (Primary Mode)) (EIFD,primary) | C85: Btu/lb.mile | D85: =VLOOKUP(D84,'Freight or Transportation'!$A$24:$C$41,3,FALSE) -> 0.650381582 | E85: The approximate energy of transportation (primary mode) – pulled from “Freight or Transportation” Tab.
B86: Average freight and distribution distance travelled by a part by primary mode (DISTFD,primary) | C86: miles/mode | D86: 1188.683 | E86: Provide average distance travelled by the product using the primary mode of transportation from the manufacturing site to point of use or sale. User can use this mode to cover international portion of the freight too.
B87: Freight and distribution method (Secondary Mode) (FDmodesecondary) | C87: Select | D87: Light goods vehicle - Diesel | E87: Select freight and distribution secondary mode.
B88: Freight and distribution average energy use (Secondary Mode) (EIFD,secondary) | C88: Btu/lb.mile | D88: =VLOOKUP(D87,'Freight or Transportation'!$A$24:$C$41,3,FALSE) -> 1.72973825 | E88: The approximate energy of transportation (secondary mode) – pulled from “Freight or Transportation” Tab.
B89: Average freight and distribution distance travelled by a part by secondary mode (DISTFD,secondary) | C89: miles/mode | D89: 2141.245 | E89: Provide average distance travelled by the product using the secondary mode of transportation from the manufacturing site to point of use or sale. User can use this mode to cover domestic part of the freight too.
B90: Freight and distribution energy use per part (FD_EU) | C90: Btu/part | D90: =IF('Intro - Start'!$C$14="Scenario 1",('CM Calculator'!$D$6/'AM Calculator (1)'!$D$6)*IF(D77="Simple",D15*(D79*D80+D82*D83), IF(D77="Intermediate",D15*(D85*D86+D88*D89),D15*(D85*D86+D88*D89))),IF(D77="Simple",D15*(D79*D80+D82*D83), IF(D77="Intermediate",D15*(D85*D86+D88*D89),D15*(D85*D86+D88*D89)))) -> 361.9718639 | E90: The total freight and distribution energy use per part – the third bar of the bar chart.
A91: Use | B91: Typical life-span of the product manufactured using Additive Manufacturing Process (P_Life) | C91: Years | D91: 30 | E91: Product life-span in years. If you know the product life-span in days/months/# cycles, convert it into number of years.
B92: Sector/application area where this part is being used (APP_Area) | C92: Select | D92: Transportation | E92: Select sector/application area from: Transportation, Commercial Buildings, Residential, and Industry. Transportation sector includes cars, trucks, buses, aircrafts, and even space shuttles. The "transportation + other" scenario takes care of applications where AM product is installed on or carried by a moving vehicle and also improving energy conversion efficiency (electric to thermal, thermal to mechanical, etc.). Under this scenario, the use phase energy consumption per part is the summation of transport and energy conversion related impacts.
B93: If the use phase is in transportation sector: Products that form part of, or are carried by, a transportation system add to its mass and thereby augment its energy burden. Strategy is to minimize mass and rolling resistance if the product is part of a system that moves.
B94: Is this product part of or carried by a vehicle? (Yes/No) | C94: Select | D94: Yes | E94: If a product that form part of, or are carried by, a transportation system; select Yes, else select No.
B95: Select fuel and mobility type (APP_Area) | C95: Select | D95: Short haul aircraft - Kerosene | E95: Select transportation or mobility mode.
B96: Average energy use (EITrans) | C96: Btu/lb.mile | D96: =VLOOKUP(D95,'Use Phase'!$A$4:$D$24,3,FALSE) -> 2.182237776 | E96: Average energy use per weight per distance – pulled from “Use Phase” Tab. In principle, average energy use by mobility type in the use phase should be different from the freight and distribution phase. Use phase energy numbers should be just the additional energy use associated with an increase in mass, whereas freight energy use should include not only the energy use associated with additional mass, but also a share of the baseline energy use needed to move the vehicle even if it were not carrying any weight.
B97: Distance travelled per day (DISTday) | C97: miles/day | D97: 2485.485 | E97: Enter usage pattern
B98: Usage (DAYSyear) | C98: days/year | D98: 200 | E98: Enter usage pattern
B99: Average energy use per lb of payload mass (only if the mobility type in cell D95 is "Spacecraft") (EIspace) | C99: Btu/lb per flight | D99: =VLOOKUP(D95,'Use Phase'!$A$4:$D$24,3,FALSE) -> 2.182237776 | E99: NASA's space shuttle consumes around 5 TJ of solid propellant and 15 TJ of hydrogen fuel to lift the 100,000 kg vehicle (including the 25,000 kg payload) to an altitude of 111 km.
B100: Number of flights per year (only if the mobility type in cell D95 is "Spacecraft") (Noflights) | C100: No. flights per year | E100: Number of shuttle flights per year.
B101: Use phase life time energy use per unit mass (UP_EI) | C101: Btu/lb | D101: =IF(D95="Spacecraft", (D99*D100*D91), (D96*D97*D98*D91)) -> 32543515.56 | E101: Calculated value.
B102: If the use phase is in other sectors: Some products are normally static but require energy to perform their function. Strategy is to increase thermal efficiency if the product is a thermal or thermo-mechanical system, or reduce electrical losses if the product is an electromechanical system.
B103: Does this product require energy to perform its function? (Yes/No) | C103: Select | D103: Yes | E103: Select Yes/No. If a product is normally static but requires energy to perform their function, select Yes, else select No.
B104: Please select energy conversion type (E_IO) | C104: Select | D104: Fossil fuel to Mechanical | E104: Select energy in and out
B105: Average power drawn by the system while in operation (PW_Rate) | C105: KW | E105: Enter power in KW. Take into consideration full load, partial load, and standby mode power usage while calculating AVERAGE power drawn by the system. (note: 1 KW = 3412.1 Btu per hour)
B106: Improvement in system efficiency from scenario 1 to 2 (only used while comparing CM and AM scenarios) (EFF_IMP) | C106: % | E106: Improvement in system efficiency from scenario 1 to 2 scenario due to improved part geometry, reduced weight, improved performance, etc. If there is no improvement then use 0%.
B107: Approximate Usage (days per year) (DAYSyear) | C107: days/year | E107: Enter usage pattern - Take into consideration and adjust for full load, partial load, and standby mode power usage while calculating the usage pattern.
B108: Approximate Usage (hours per day) (HOURSday) | C108: hr/day | E108: Enter usage pattern - Take into consideration and adjust for full load, partial load, and standby modes while calculating the usage pattern.
B109: Use phase energy use per part (UP_EU) | C109: Btu/part | D109: =IF('Intro - Start'!$C$14="Scenario 1",('CM Calculator'!$D$6/'AM Calculator (1)'!$D$6)*IF(D92="Transportation",D101*D15,IF(D92="Transportation and Other Sector",D101*D15+(1-D106)* D105*D107*D108*D91*3412.14163,(1-D106)* D105*D107*D108*D91*3412.14163)),IF(D92="Transportation",D101*D15,IF(D92="Transportation and Other Sector",D101*D15+ D105*D107*D108*D91*3412.14163,D105*D107*D108*D91*3412.14163))) -> 2863829.369 | E109: The total use phase energy use per part – the fourth bar of the bar chart.
A110: Disposal (End of Life) | B110: PRIMARY disposal method for material # 1 (DISPM1,Pmode) | C110: Select | D110: Landfill | E110: Please select primary disposal method option for material # 1 – Landfill, Combustion or incineration, Composting, Open-loop recycling, Closed-loop recycling, or Other (Re-engineering/Reuse). In open-loop recycling, products are recycled into new products that are eventually disposed of. In closed-loop recycling, products are recycled again and again into the same product.
B111: Fraction of material # 1 disposed through the selected PRIMARY disposal method (DISPM1,%, Pmode) | C111: % of final part mass | D111: 1 | E111: A fraction of material # 1 disposed using user selected primary disposal method
B112: Disposal energy use per unit mass (PRIMARY Disposal Method) - material # 1 (applicable only if open or closed-loop recycling selected - calculated) (EEsM,1 - EEpM,1) | C112: Btu/lb | D112: =(D20-D19) -> 0 | E112: This is the difference between secondary (recycled) and primary (virgin) material embodied energies. Negative Btu/lb means that the manufacturing process using the recycled material shows lower burdens. Any additional material recycled is also credited to the product to reflect the good end-of-life performance of product under consideration. For simplicity, the amount of energy needed for deconstruction, sorting, processing, and shipping is not considered.
B113: Disposal energy use per unit mass (PRIMARY Disposal Method) - material # 1 (applicable for all other disposal methods except open or closed-loop recycling - user input) (EEM1,other, Pmode) | C113: Btu/lb | D113: 18271.7275 | E113: This is the amount of energy needed for disposing material 1 using the disposal method other than open or closed-loop recycling. If the disposal method is combustion, energy use per unit mass may be negative.
B114: SECONDARY disposal method for material # 1 (DISPM1,Smode) | C114: Select | D114: Landfill | E114: Please select secondary disposal method option for material # 1 – Landfill, Combustion or incineration, Composting, Open-loop recycling, Closed-loop recycling, or Other (Re-engineering/Reuse). In open-loop recycling, products are recycled into new products that are eventually disposed of. In closed-loop recycling, products are recycled again and again into the same product.
B115: Fraction of material # 1 disposed through the selected SECONDARY disposal method (DISPM1,%, Smode) | C115: % of final part mass | D115: =(1-D111) -> 0 | E115: A fraction of material # 1 disposed using user selected secondary disposal method
B116: Disposal energy use per unit mass (SECONDARY Disposal Method) - material # 1 (applicable only if open or closed-loop recycling selected - calculated) (EEsM,1 - EEpM,1) | C116: Btu/lb | D116: =(D20-D19) -> 0 | E116: This is the difference between secondary (recycled) and primary (virgin) material embodied energies. Negative Btu/lb means that the manufacturing process using the recycled material shows lower burdens. Any additional material recycled is also credited to the product to reflect the good end-of-life performance of product under consideration. For simplicity, the amount of energy needed for deconstruction, sorting, processing, and shipping is not considered.
B117: Disposal energy use per unit mass (SECONDARY Disposal Method) - material # 1 (applicable for all other disposal methods except open or closed-loop recycling - user input) (EEM1,other, Smode) | C117: Btu/lb | D117: 18271.7275 | E117: This is the amount of energy needed for disposing material 1 using the disposal method other than open or closed-loop recycling. If the disposal method is combustion, energy use per unit mass may be negative.
B118: Disposal (End of Life) energy use per part - Material # 1 | C118: Btu/part | D118: =IF(D110="Open-loop Recycling", D15*D9*(D111*D112),IF(D110="Closed-loop Recycling", D15*D9*(D111*D112),D15*D9*(D111*D113)))+IF(D114="Open-loop Recycling", D15*D9*(D115*D116),IF(D114="Closed-loop Recycling", D15*D9*(D115*D116),D15*D9*(D115*D117))) -> 1286.329616 | E118: The total disposal energy use per part for Material # 1. Negative energy use per part in disposal phase means that the manufacturing process using the recycled material shows lower burdens. Any additional material recycled is also credited to the product to reflect the good end-of-life performance of product under consideration.
B119: PRIMARY disposal method for material # 2 (DISPM2,Pmode) | C119: Select | D119: Open-loop Recycling | E119: Please select primary disposal method option for material # 2 – Landfill, Combustion or incineration, Composting, Open-loop recycling, Closed-loop recycling, or Other (Re-engineering/Reuse). In open-loop recycling, products are recycled into new products that are eventually disposed of. In closed-loop recycling, products are recycled again and again into the same product.
B120: Fraction of material # 2 disposed through the selected PRIMARY disposal method (DISPM2,%, Pmode) | C120: % of final part mass | D120: 0.9 | E120: A fraction of material # 2 disposed using user selected primary disposal method
B121: Disposal energy use per unit mass (PRIMARY Disposal Method) - material # 2 (applicable only if open or closed-loop recycling selected - calculated) (EEsM,2 - EEpM,2) | C121: Btu/lb | D121: =(D22-D21) -> -34393.84 | E121: This is the difference between secondary (recycled) and primary (virgin) material embodied energies. Negative Btu/lb means that the manufacturing process using the recycled material shows lower burdens. Any additional material recycled is also credited to the product to reflect the good end-of-life performance of product under consideration. For simplicity, the amount of energy needed for deconstruction, sorting, processing, and shipping is not considered.
B122: Disposal energy use per unit mass (PRIMARY Disposal Method) - material # 2 (applicable for all other disposal methods except open or closed-loop recycling - user input) (EEM2,other, Pmode) | C122: Btu/lb | D122: 1000 | E122: This is the amount of energy needed for disposing material 2 using the disposal method other than open or closed-loop recycling. If the disposal method is combustion, energy use per unit mass may be negative.
B123: SECONDARY disposal method for material # 2 (DISPM2,Smode) | C123: Select | D123: Abandon in Place | E123: Please select secondary disposal method option for material # 2 – Landfill, Combustion or incineration, Composting, Open-loop recycling, Closed-loop recycling, or Other (Re-engineering/Reuse). In open-loop recycling, products are recycled into new products that are eventually disposed of. In closed-loop recycling, products are recycled again and again into the same product.
B124: Fraction of material # 2 disposed through the selected SECONDARY disposal method (DISPM2,%, Smode) | C124: % of final part mass | D124: =(1-D120) -> 0.1 | E124: A fraction of material # 2 disposed using user selected secondary disposal method
B125: Disposal energy use per unit mass (SECONDARY Disposal Method) - material # 2 (applicable only if open or closed-loop recycling selected - calculated) (EEsM,2 - EEpM,2) | C125: Btu/lb | D125: =(D22-D21) -> -34393.84 | E125: This is the difference between secondary (recycled) and primary (virgin) material embodied energies. Negative Btu/lb means that the manufacturing process using the recycled material shows lower burdens. Any additional material recycled is also credited to the product to reflect the good end-of-life performance of product under consideration. For simplicity, the amount of energy needed for deconstruction, sorting, processing, and shipping is not considered.
B126: Disposal energy use per unit mass (SECONDARY Disposal Method) - material # 2 (applicable for all other disposal methods except open or closed-loop recycling - user input) (EEM1,other, Smode) | C126: Btu/lb | D126: 1000 | E126: This is the amount of energy needed for disposing material 2 using the disposal method other than open or closed-loop recycling. If the disposal method is combustion, energy use per unit mass may be negative.
B127: Disposal (End of Life) energy use per part - Material # 2 | C127: Btu/part | D127: =IF(D119="Open-loop Recycling", D15*D11*(D120*D121),IF(D119="Closed-loop Recycling", D15*D11*(D120*D121),D15*D11*(D120*D122)))+IF(D123="Open-loop Recycling", D15*D11*(D124*D125),IF(D123="Closed-loop Recycling", D15*D11*(D124*D125),D15*D11*(D124*D126))) -> -543.0384256 | E127: The total disposal energy use per part for Material # 2. Negative energy use per part in disposal phase means that the manufacturing process using the recycled material shows lower burdens. Any additional material recycled is also credited to the product to reflect the good end-of-life performance of product under consideration.
B128: Disposal (End of Life) energy use per part (DISP_EU) | C128: Btu/part | D128: =IF(D9=1,D118,(D118+D127)) -> 743.2911904 | E128: The total disposal energy use per part – the fifth bar of the bar chart. Negative energy use per part in disposal phase means that the manufacturing process using the recycled material shows lower burdens than for using virgin materials. Any additional material recycled is also credited to the product to reflect the good end-of-life performance of product under consideration.

Sheet AM Calculator (2) (hidden)
A1: AM Energy Impacts Assessment Tool - Additive Manufacturing Process | I1: User Input or Drop Down Menu
A2: LCA Phase | B2: Input Parameter | C2: Unit | D2: Value | E2: Tool Guidance | F2: User Notes and Assumptions | I2: Output
A3: Part Information | B3: Part name | C3: Name | D3: Part XYZ | E3: Enter part/product name manufactured by the additive manufacturing process under consideration.
B4: Part description | C4: Description | D4: Brief description | E4: Provide brief description of the part and its application, etc.
A5: Additive Manufacturing Process
A6: Typical life-span of the product manufactured using the Additive Manufacturing Process (LSAM) | C6: Years | D6: 30 | E6: Enter product life in terms of # of cycles, years, months, or days.
A7: Material | B7: Additive Manufacturing Process/Technique ( AMTech) | C7: Select | D7: Fused Deposition Modeling (FDM) of Polymers | E7: Select the type of additive manufacturing process to evaluate
B8: Material # 1 consumed to produce final part (M1) | C8: Select | D8: ULTEM 9085 - Extruded Filament | E8: Select material # 1 name from the drop-down list. The current version of the tool allows only two raw materials.
B9: Material # 1 Amount - % of total initial mass (M1,%) | C9: % | D9: 0.8 | E9: Enter material # 1 amount as a % of total initial mass. If material # 1 amount is < 100%, tool brings up a second material option.
B10: Material # 2 consumed to produce final part (M2) | C10: Select | D10: Polyamide (nylon) | E10: If material # 1 amount is 100%, select "None", otherwise select material # 2 name from the drop-down list.
B11: Material # 2 Amount - % of total initial mass (M2,%) | C11: % | D11: =(1-D9) -> 0.2 | E11: Calculated automatically.
B12: % Reduction in material Initial mass w.r.t. CM Process (Minitial,%Red) | C12: % | D12: =IF('Intro - Start'!C14="Scenario 1", ('CM Calculator'!$D$11-$D$14)/'CM Calculator'!$D$11,(D14-$D$14)/D14) -> 0.01904761905 | E12: Calculated automatically.
B13: % Reduction in Final part mass w.r.t. CM Process (Mfinal,%Red) | C13: % | D13: =IF('Intro - Start'!C14="Scenario 1",('CM Calculator'!$D$12-$D$15)/'CM Calculator'!$D$12,(D15-$D$15)/D15) -> 0.1578947368 | E13: Calculated automatically.
B14: Total input material initial mass (Minitial,AM) | C14: lb/part | D14: 0.103 | E14: Enter input material initial mass - this should include scrap, waste, and material loss during the manufacturing process.
B15: Final part mass (Mfinal,AM) | C15: lb/part | D15: 0.08 | E15: Enter final mass of the component/part after going through all the manufacturing and post-manufacturing processes.
B16: Ratio between initial material used and the weight of the final product - Additive Manufacturing Process (Minitial,AM/ Mfinal,AM) | C16: Ratio | D16: =IF(D15>0,D14/D15,0) -> 1.2875 | E16: The weight ratio between initial input material used for a component and the weight of the final component itself.
B17: Total engineered scrap or waste generated onsite while producing final part (Escrap) | C17: lb/part | D17: =D14-D15 -> 0.023 | E17: This is the difference between total input material initial mass and final part mass.
B18: Percent of engineered scrap or waste material recovered and recycled onsite (Escrap%,recycle) | C18: % | D18: 0 | E18: User provides a percent of total engineered scrap or waste material recovered and recycled on-site. This is different from the recycled material after end of life.
B19: Material # 1 embodied energy (primary or virgin) (EEpM,1) | C19: Btu/lb | D19: =VLOOKUP(D8,'Embodied Energy - Material'!$A$2:$E$56,4,FALSE) -> 58469.528 | E19: Embodied Energy for Material # 1 (primary or virgin) - pulled from the "Embodied Energy - Material" tab.
B20: Material # 1 embodied energy (recycled engineered scrap) (EEsM,1) | C20: Btu/lb | D20: =VLOOKUP(D8,'Embodied Energy - Material'!$A$2:$E$56,5,FALSE) -> 58469.528 | E20: Embodied Energy for Material # 1 (secondary or recycled) - pulled from the "Embodied Energy - Material" tab.
B21: Material # 2 embodied energy (primary or virgin) (EEpM,2) | C21: Btu/lb | D21: =VLOOKUP(D10,'Embodied Energy - Material'!$A$2:$E$56,4,FALSE) -> 52665.5675 | E21: Embodied Energy for Material # 2 (primary or virgin) - pulled from the "Embodied Energy - Material" tab.
B22: Material # 2 embodied energy (recycled engineered scrap) (EEsM,2) | C22: Btu/lb | D22: =VLOOKUP(D10,'Embodied Energy - Material'!$A$2:$E$56,5,FALSE) -> 18271.7275 | E22: Embodied Energy for Material # 2 (secondary or recycled) - pulled from the "Embodied Energy - Material" tab.
B23: Raw Material Energy Use per Part (M_EU_AM) | C23: Btu/part | D23: =IF('Intro - Start'!C14="Scenario 1", ('CM Calculator'!$D$6/'AM Calculator (2)'!$D$6)*(D9*D14-D9*(D18*D17))*D19+(D9*(D18*D17)*D20)+(D11*D14-D11*(D18*D17))*D21+(D11*(D18*D17)*D22),(D9*D14-D9*(D18*D17))*D19+(D9*(D18*D17)*D20)+(D11*D14-D11*(D18*D17))*D21+(D11*(D18*D17)*D22)) -> 5902.799798 | E23: The total material energy per part – the first bar of the bar chart.
A24: Manufacturing | B24: Analysis Level (M_AL) | C24: Select | D24: Simple | E24: Analysis levels - Simple, Intermediate, and Advanced
B25: Additive manufacturing process embodied energy use (Simple Method Starts Here) (EIAM_PP) | C25: Btu/lb | D25: =VLOOKUP(D7,'Embodied Energy - Process'!A40:E50,3,FALSE) -> 76526.294 | E25: Simple method uses published data based on the type of the AM method (SLM, DMLS, EBM, LS, FDM, and Other)
B26: Secondary Process (machining/joining/finishing) (AM_SP) | C26: Select | D26: Other Secondary Process | E26: Secondary mode of material processing.
B27: Secondary Process Energy Intensity (EIAM_SP) | C27: Btu/lb | D27: =VLOOKUP(D26,'Embodied Energy - Process'!$A$20:$C$35,3,FALSE) -> 0 | E27: Embodied energy per lb processed for the secondary process.
B28: % of material removed by secondary process (MAM_SP,%) | C28: % | D28: =IF(D26="None",0,(D14-D15)/D14) -> 0.2233009709 | E28: Calculated automatically.
B29: Enter post-machining process or processes (heat treating, stress relieving, brazing, HIP, inspection, etc.) ()+B16 ( AM_PostM) | C29: User defined | D29: None | E29: Manually enter post-machining process or processes. Post-machining processes include heat treating, stress relieving, brazing, HIP, inspection, etc.). Care should be taken when the energy content of a secondary process is calculated based on batch processing. When the batch size changes there can be a significant change in the energy intensity per part.
B30: Enter post-additive manufacturing process or processes energy intensity (EIAM_PostM) | C30: Btu/lb | D30: 0 | E30: Provide post-machining process energy intensity. If multiple post-machining processes are involved, calculate combined energy intensity.
B31: % of material going through post-additive manufacturing processes (heat treating, stress relieving, brazing, HIPing, inspection, etc.) (MAM_PostM,%) | C31: % of final part mass | D31: 0 | E31: Provide % of final part mass going through the post-machining processes. Typically, this number is going to be 100%.
B32: Additive Manufacturing process embodied energy use (EEAM,Simple) | C32: Btu/lb | D32: =D25+D28*D27+D31*D30 -> 76526.294 | E32: Embodied energy of additive manufacturing process using the simple method.
B33: Machine Model (Intermediate Method Starts Here) | C33: Enter | D33: Model A | E33: Intermediate method uses the NAME PLATE data based on the Machine Specs and part material.
B34: Total Build Time or Production Time | C34: hr/build | D34: 10 | E34: Total production time includes machine tool cleaning, preheating, exposure, recoating, and cooling down. Total production time includes machine tool cleaning, preheating, exposure, recoating, and cooling down. Include cleaning time only if a machine needs cleaning for each cycle. However, if maintenance, cleaning, etc. takes place during non-production shifts, then do not include it here.
B35: Number of parts produced per build operation (NP) | C35: Number of parts/build | D35: 4 | E35: This steps accounts for multiple parts in a single build and its impact on energy.
B36: Average Power Level in Standby, Preheating, and Cooling Down Modes | C36: kW | D36: 1.5 | E36: Take an average of energy consumption per hour in Standby, Preheating, and Cooling Down Modes. Take an average of energy consumption per hour in Standby, Preheating, and Cooling Down Modes. During preheating there will be a constant energy flow to bring the system to operating temperature, much like preheating an oven. During the build the two large power consumers will be maintaining the environmental temperature and portion of the system depositing raw material (laser, extruder, etc.). Stand-by will involve intermittent power consumption to keep the system at a holding temperature without material deposition.
B37: % of total build time the machine is in Standby, Preheating, and Cooling Down Modes | C37: % | D37: 0.3 | E37: Enter % of total build time the machine is in Standby, Preheating, and Cooling Down Modes.
B38: Average Energy Consumption per hour (kW) when AM machine is in production mode | C38: kW | D38: 4.5 | E38: Average Power Level in Heating, Exposure, and Recoating Mode.
B39: % of total build time the machine is in production mode and producing parts | C39: % | D39: =(1-D37) -> 0.7 | E39: Calculated. % of total build time the machine is in Heating, Exposure, and Recoating Mode.
B40: AM Process Productivity | C40: lb/hr | D40: 0.45 | E40: Enter machine productivity in terms of lbs of raw material processed per hour. This depends upon machine type, AM process type, material, the total batch volume (V) and production batch height (h).
B41: Secondary Process (machining/joining/finishing) | C41: Select | D41: Other Secondary Process | E41: Secondary mode of material processing.
B42: Secondary Process Energy Intensity | C42: Btu/lb | D42: =VLOOKUP(D41,'Embodied Energy - Process'!$A$20:$C$35,3,FALSE) -> 0 | E42: Embodied energy per lb processed for the secondary process.
B43: % of material removed by secondary process | C43: % | D43: =IF(D41="None",0,(D14-D15)/D14) -> 0.2233009709 | E43: Calculated automatically.
B44: Enter post-machining process or processes (heat treating, stress relieving, brazing, HIP, inspection, etc.) | C44: User defined | D44: None | E44: Manually enter post-machining process or processes. Post-machining processes include heat treating, stress relieving, brazing, HIP, inspection, etc.). Care should be taken when the energy content of a secondary process is calculated based on batch processing. When the batch size changes there can be a significant change in the energy intensity per part.
B45: Enter post-additive manufacturing process or processes energy intensity | C45: Btu/lb | D45: 0 | E45: Provide post-machining process energy intensity. If multiple post-machining processes are involved, calculate combined energy intensity.
B46: % of material going through post-additive manufacturing processes (heat treating, stress relieving, brazing, HIPing, inspection, etc.) | C46: % of final part mass | D46: 0 | E46: Provide % of final part mass going through the post-machining processes. Typically, this number is going to be 100%.
B47: Additive Manufacturing process embodied energy use | C47: Btu/lb | D47: =3412.14163*((D34*D36*D37)/(D35*D14))+3412.14163*((D34*D38*D39)/(D35*D14))+(D43*D42)+(D46*D45) -> 298148.2978 | E47: Embodied energy of additive manufacturing process using the intermediate method.
B48: Build Time Estimation (Advanced Method Starts Here): The estimate for total build time, TBuild, is obtained by combining data from a hierarchy of elements of time consumption.
B49: Part name | C49: Name | D49: =D3 -> Part XYZ | E49: Use the method of build time estimation and energy consumption estimation based on the part geometry, material, and machine specs. This method is documented in the article "Transparency Built in, Journal of Industrial Ecology, 2012). This is a a bottom up approach method.
B50: Number of parts produced per build operation (NP) | C50: Number of parts/build | D50: 4 | E50: This step accounts for multiple parts in a single build and its impact on energy.
B51: Fixed time consumption per build operation, TJob | C51: seconds/build | E51: Provide fixed time consumption per build operation irrespective of number of parts produced. For example, time required for machine atmosphere generation and machine warm-up.
B52: Fixed time consumption per layer, TPer_Layer | C52: seconds per layer | E52: Time required for completing one layer of the material.
B53: The total number of build layers, l | C53: layers/build | E53: Total number of layers per build operation.
B54: Total layer dependent time consumption, TLayer | C54: seconds/build | D54: =D52*D53 -> 0 | E54: Obtained by multiplying the fixed time consumption per layer, TLayer, by the total number of build layers l;
B55: The total build time needed for the deposition of part geometry approximated by the voxels, TVoxel | C55: seconds/build | E55: The summation of the time needed to process each voxel, TVoxel xyz, in a three-dimensional array representing the discretized build configuration
B56: Build Time per Part (TBuild = (TJob + TLayer + Tvoxel)/NP) | C56: seconds/part | D56: =IF(D50>0,(D51+D54+D55)/D50,0) -> 0 | E56: A voxel (volumetric pixel or Volumetric Picture Element) is a volume element, representing a value on a regular grid in three dimensional space.
B57: Energy Consumption Estimation:
B58: Fixed energy consumption per build operation, EJob | C58: Btu/build | E58: EJob contains all energy consumption attributable to the build job irrespective of number of parts produced per build operation, including energy consumed by the wire erosion process to remove the parts from the build plate.
B59: Time-dependent energy consumption rate ETime_Rate | C59: Btu/second | E59: A purely time-dependent element of power consumption must be expected in the continuous operation of the AM machine. This is denoted by the energy consumption rate ETime_Rate (measured in MJ/s), which is multiplied by TBuild to estimate total time-dependent energy consumption. Modeling ETime as a constant reflects its interpretation as a mean baseline level of energy consumption throughout the build, originating from continuously operating machine components such as cooling fans, pumps, and the control system.
B60: Time-dependent energy consumption ETime = ETime_Rate * TBuild | C60: Btu/build | D60: =D59*D56 -> 0 | E60: Obtained by multiplying the time dependent energy consumption rate by the total build time.
B61: Fixed energy consumption per layer, EPer_Layer | C61: Btu/layer | E61: Provide fixed energy consumption amount per layer.
B62: The total number of build layers, l | C62: layers/build | D62: =D53 -> 0 | E62: Total number of layers per build operation.
B63: Total layer dependent energy consumption, ELayer | C63: Btu/build | D63: =D61*D62 -> 0 | E63: Analogous to build time estimation, ELayer denotes fixed elements of energy consumption per build and layer, for a total number of layers, l.
B64: The energy needed for the deposition of part geometry approximated by the voxels, EVoxel | C64: Btu/part | E64: Evoxel is the geometry-dependent energy consumption that can be obtained by adding all energy consumption associated with voxel deposition throughout the discretized workplace. Please note that EVoxel does not contain time-dependent power consumption.
B65: Build Energy Consumption per Part (EBuild = [Ejob/NP + (ETime_Rate × TBuild) + (EPer_Layer × l )/NP + Evoxel] | C65: Btu/part | D65: =IF(D50>0,((D58/D50+(D59*D56)+(D61*D62)/D50+D64)),0) -> 0 | E65: Total build energy consumption which is the summation of Ejob, Etime, Elayer, and Evoxel. Please note - fixed energy consumption per build operation is divided by number of parts produced per build operation.
B66: Manufacturing Embodied Energy Estimation:
B67: Build Energy Consumption per Part | C67: Btu/part | D67: =D65 -> 0 | E67: As calculated above.
B68: Total input material initial mass | C68: lb/part | D68: =D14 -> 0.103 | E68: As provided above. Total input material initial mass which is going through all the manufacturing and post-manufacturing processes.
B69: Secondary Process (machining/joining/finishing) | C69: Select | D69: Other Secondary Process | E69: Secondary mode of material processing.
B70: Secondary Process Energy Intensity | C70: Btu/lb | D70: =VLOOKUP(D69,'Embodied Energy - Process'!$A$20:$C$35,3,FALSE) -> 0 | E70: Embodied energy per lb processed for the secondary process.
B71: % of material removed by secondary process | C71: % | D71: =IF(D69="None",0,(D14-D15)/D14) -> 0.2233009709 | E71: Calculated automatically.
B72: Enter post-machining process or processes (heat treating, stress relieving, brazing, HIP, inspection, etc.) | C72: User defined | D72: None | E72: Manually enter post-machining process or processes. Post-machining processes include heat treating, stress relieving, brazing, HIP, inspection, etc.). Care should be taken when the energy content of a secondary process is calculated based on batch processing. When the batch size changes there can be a significant change in the energy intensity per part.
B73: Enter post-additive manufacturing process or processes energy intensity | C73: Btu/lb | D73: 0 | E73: Provide post-machining process energy intensity. If more than one post-machining processes are involved, calculate combined energy intensity.
B74: % of material going through post-additive manufacturing processes (heat treating, stress relieving, brazing, HIPing, inspection, etc.) | C74: % of final part mass | D74: 0 | E74: Provide % of final part mass going through the post-machining processes. Typically, this number is going to be 100%.
B75: Additive Manufacturing process embodied energy use | C75: Btu/lb | D75: =IF(D68=0,0,(D67/D68)+D71*D70+D74*D73) -> 0 | E75: This is obtained by adding build energy consumption intensity and post-additive manufacturing processes energy intensities.
B76: Manufacturing energy use per Part | C76: Btu/part | D76: =IF('Intro - Start'!$C$14="Scenario 1",('CM Calculator'!$D$6/'AM Calculator (2)'!$D$6)*IF(D24="Simple",D32*(D14),IF(D24="Intermediate",D47*(D14),D75*(D14))),IF(D24="Simple",D32*(D14),IF(D24="Intermediate",D47*(D14),D75*(D14)))) -> 7882.208282 | E76: The total manufacturing energy per part – the first bar of the bar chart.
A77: Freight and Distribution | B77: Analysis Level (FD_AL) | C77: Select | D77: Simple | E77: Select analysis level - Simple or Intermediate. Intermediate level provides more granularity in terms of freight and distribution modes and associated energy intensities.
B78: Freight and distribution method (Primary Mode) (FDmodeprimary) | C78: Select | D78: Ship | E78: Select freight and distribution primary mode.
B79: Freight and distribution average energy use (Primary Mode) EIFD,primary) | C79: Btu/lb/mile | D79: =VLOOKUP(D78,'Freight or Transportation'!$A$4:$D$8,4,FALSE) -> 0.8369083567 | E79: The approximate energy of transportation (primary mode) – pulled from “Freight or Transportation” Tab.
B80: Average freight and distribution distance travelled by a part by primary mode (DISTFD,primary) | C80: miles | D80: 4000 | E80: Provide average distance travelled by the product using the primary mode of transportation from the manufacturing site to point of use or sale. Use this for international part of the freight.
B81: Freight and distribution method (Secondary Mode) (FDmodesecondary) | C81: Select | D81: Long-Distance Truck | E81: Select freight and distribution secondary mode.
B82: Freight and distribution average energy use (Secondary Mode) | C82: Btu/lb/mile | D82: =VLOOKUP(D81,'Freight or Transportation'!$A$4:$D$8,4,FALSE) -> 3.062732833 | E82: The approximate energy of transportation (secondary mode) – pulled from “Freight or Transportation” Tab.
B83: Average freight and distribution distance travelled by a part by secondary mode (DISTFD,secondary) | C83: miles | D83: 250 | E83: Provide average distance travelled by the product using the secondary mode of transportation from the manufacturing site to point of use or sale. Use this for domestic part of the freight.
B84: Freight and distribution method (Primary Mode) (FDmodeprimary) | C84: Select | D84: 32 metric ton truck - Diesel | E84: Select freight and distribution primary mode.
B85: Freight and distribution average energy use (Primary Mode) (EIFD,primary) | C85: Btu/lb.mile | D85: =VLOOKUP(D84,'Freight or Transportation'!$A$24:$C$41,3,FALSE) -> 0.650381582 | E85: The approximate energy of transportation (primary mode) – pulled from “Freight or Transportation” Tab.
B86: Average freight and distribution distance travelled by a part by primary mode (DISTFD,primary) | C86: miles/mode | D86: 1188.683 | E86: Provide average distance travelled by the product using the primary mode of transportation from the manufacturing site to point of use or sale. User can use this mode to cover international portion of the freight too.
B87: Freight and distribution method (Secondary Mode) (FDmodesecondary) | C87: Select | D87: Light goods vehicle - Diesel | E87: Select freight and distribution secondary mode.
B88: Freight and distribution average energy use (Secondary Mode) (EIFD,secondary) | C88: Btu/lb.mile | D88: =VLOOKUP(D87,'Freight or Transportation'!$A$24:$C$41,3,FALSE) -> 1.72973825 | E88: The approximate energy of transportation (secondary mode) – pulled from “Freight or Transportation” Tab.
B89: Average freight and distribution distance travelled by a part by secondary mode (DISTFD,secondary) | C89: miles/mode | D89: 2141.245 | E89: Provide average distance travelled by the product using the secondary mode of transportation from the manufacturing site to point of use or sale. User can use this mode to cover domestic part of the freight too.
B90: Freight and distribution energy use per part (FD_EU) | C90: Btu/part | D90: =IF('Intro - Start'!$C$14="Scenario 1",('CM Calculator'!$D$6/'AM Calculator (2)'!$D$6)*IF(D77="Simple",D15*(D79*D80+D82*D83), IF(D77="Intermediate",D15*(D85*D86+D88*D89),D15*(D85*D86+D88*D89))),IF(D77="Simple",D15*(D79*D80+D82*D83), IF(D77="Intermediate",D15*(D85*D86+D88*D89),D15*(D85*D86+D88*D89)))) -> 329.0653308 | E90: The total freight and distribution energy use per part – the third bar of the bar chart.
A91: Use | B91: Typical life-span of the product manufactured using Additive Manufacturing Process (P_Life) | C91: Years | D91: 30 | E91: Product life-span in years. If you know the product life-span in days/months/# cycles, convert it into number of years.
B92: Sector/application area where this part is being used (APP_Area) | C92: Select | D92: Transportation | E92: Select sector/application area from: Transportation, Commercial Buildings, Residential, and Industry. Transportation sector includes cars, trucks, buses, aircrafts, and even space shuttles. The "transportation + other" scenario takes care of applications where AM product is installed on or carried by a moving vehicle and also improving energy conversion efficiency (electric to thermal, thermal to mechanical, etc.). Under this scenario, the use phase energy consumption per part is the summation of transport and energy conversion related impacts.
B93: If the use phase is in transportation sector: Products that form part of, or are carried by, a transportation system add to its mass and thereby augment its energy burden. Strategy is to minimize mass and rolling resistance if the product is part of a system that moves.
B94: Is this product part of or carried by a vehicle? (Yes/No) | C94: Select | D94: Yes | E94: If a product that form part of, or are carried by, a transportation system; select Yes, else select No.
B95: Select fuel and mobility type (Trans_Type) | C95: Select | D95: Long haul aircraft - Kerosene | E95: Select transportation or mobility mode.
B96: Average energy use (EITrans) | C96: Btu/lb.mile | D96: =VLOOKUP(D95,'Use Phase'!$A$4:$D$24,3,FALSE) -> 2.182237776 | E96: Average energy use per weight per distance – pulled from “Use Phase” Tab. In principle, average energy use by mobility type in the use phase should be different from the freight and distribution phase. Use phase energy numbers should be just the additional energy use associated with an increase in mass, whereas freight energy use should include not only the energy use associated with additional mass, but also a share of the baseline energy use needed to move the vehicle even if it were not carrying any weight.
B97: Distance travelled per day (DISTday) | C97: miles/day | D97: 2485.485 | E97: Enter usage pattern
B98: Usage (DAYSyear) | C98: days/year | D98: 200 | E98: Enter usage pattern
B99: Average energy use per lb of payload mass (only if the mobility type in cell D95 is "Spacecraft") (EIspace) | C99: Btu/lb per flight | D99: =VLOOKUP(D95,'Use Phase'!$A$4:$D$24,3,FALSE) -> 2.182237776 | E99: NASA's space shuttle consumes around 5 TJ of solid propellant and 15 TJ of hydrogen fuel to lift the 100,000 kg vehicle (including the 25,000 kg payload) to an altitude of 111 km.
B100: Number of flights per year (only if the mobility type in cell D95 is "Spacecraft") (Noflights) | C100: No. flights per year | E100: Number of shuttle flights per year.
B101: Use phase life time energy use per unit mass (UP_EI) | C101: Btu/lb | D101: =IF(D95="Spacecraft", (D99*D100*D91), (D96*D97*D98*D91)) -> 32543515.56 | E101: Calculated value.
B102: If the use phase is in other sectors: Some products are normally static but require energy to perform their function. Strategy is to increase thermal efficiency if the product is a thermal or thermo-mechanical system, or reduce electrical losses if the product is an electromechanical system.
B103: Does this product require energy to perform its function? (Yes/No) | C103: Select | D103: No | E103: Select Yes/No. If a product is normally static but requires energy to perform their function, select Yes, else select No.
B104: Please select energy conversion type (E_IO) | C104: Select | D104: Fossil fuel to Mechanical | E104: Select energy in and out
B105: Average power drawn by the system while in operation (PW_Rate) | C105: KW | E105: Enter power in KW. Take into consideration full load, partial load, and standby mode power usage while calculating AVERAGE power drawn by the system. (note: 1 KW = 3412.1 Btu per hour)
B106: Improvement in system efficiency (AM scenario 1 to 2) (EFF_IMP) | C106: % | E106: Improvement in system efficiency from AM 1 scenario to AM 2 scenario due to improved part geometry, reduced weight, improved performance, etc. If there is no improvement then use 0%.
B107: Approximate Usage (days per year) (DAYSyear) | C107: days/year | E107: Enter usage pattern - Take into consideration and adjust for full load, partial load, and standby modes while calculating the usage pattern.
B108: Approximate Usage (hours per day) (HOURSday) | C108: hr/day | E108: Enter usage pattern - Take into consideration and adjust for full load, partial load, and standby modes while calculating the usage pattern.
B109: Use phase energy use per part (UP_EU) | C109: Btu/part | D109: =IF('Intro - Start'!$C$14="Scenario 1",('CM Calculator'!$D$6/'AM Calculator (2)'!$D$6)*IF(D92="Transportation",D101*D15,IF(D92="Transportation and Other Sector",D101*D15+(1-D106)* D105*D107*D108*D91*3412.14163,(1-D106)* D105*D107*D108*D91*3412.14163)),('AM Calculator (1)'!$D$6/'AM Calculator (2)'!$D$6)*IF(D92="Transportation",D101*D15,IF(D92="Transportation and Other Sector",D101*D15+(1-D106)* D105*D107*D108*D91*3412.14163,(1-D106)* D105*D107*D108*D91*3412.14163))) -> 2603481.244 | E109: The total use phase energy use per part – the fourth bar of the bar chart.
A110: Disposal (End of Life) | B110: PRIMARY disposal method for material # 1 (DISPM1,Pmode) | C110: Select | D110: Closed-loop Recycling | E110: Please select primary disposal method option for material # 1 – Landfill, Combustion or incineration, Composting, Open-loop recycling, Closed-loop recycling, or Other (Re-engineering/Reuse). In open-loop recycling, products are recycled into new products that are eventually disposed of. In closed-loop recycling, products are recycled again and again into the same product.
B111: Fraction of material # 1 disposed through the selected PRIMARY disposal method (DISPM1,%, Pmode) | C111: % of final part mass | D111: 0.8 | E111: A fraction of material # 1 disposed using user selected primary disposal method
B112: Disposal energy use per unit mass (PRIMARY Disposal Method) - material # 1 (applicable only if open or closed-loop recycling selected - calculated) ((EEsM,1 - EEpM,1)) | C112: Btu/lb | D112: =(D20-D19) -> 0 | E112: This is the difference between secondary (recycled) and primary (virgin) material embodied energies. Negative Btu/lb means that the manufacturing process using the recycled material shows lower burdens. Any additional material recycled is also credited to the product to reflect the good end-of-life performance of product under consideration. For simplicity, the amount of energy needed for deconstruction, sorting, processing, and shipping is not considered.
B113: Disposal energy use per unit mass (PRIMARY Disposal Method) - material # 1 (applicable for all other disposal methods except open or closed-loop recycling - user input) (EEM1,other, Pmode) | C113: Btu/lb | D113: 18271.7275 | E113: This is the amount of energy needed for disposing material 1 using the disposal method other than open or closed-loop recycling. If the disposal method is combustion, energy use per unit mass may be negative.
B114: SECONDARY disposal method for material # 1 (DISPM1,Smode) | C114: Select | D114: Landfill | E114: Please select secondary disposal method option for material # 1 – Landfill, Combustion or incineration, Composting, Open-loop recycling, Closed-loop recycling, or Other (Re-engineering/Reuse). In open-loop recycling, products are recycled into new products that are eventually disposed of. In closed-loop recycling, products are recycled again and again into the same product.
B115: Fraction of material # 1 disposed through the selected SECONDARY disposal method (DISPM1,%, Smode) | C115: % of final part mass | D115: =(1-D111) -> 0.2 | E115: A fraction of material # 1 disposed using user selected secondary disposal method
B116: Disposal energy use per unit mass (SECONDARY Disposal Method) - material # 1 (applicable only if open or closed-loop recycling selected - calculated) (EEsM,1 - EEpM,1) | C116: Btu/lb | D116: =(D20-D19) -> 0 | E116: This is the difference between secondary (recycled) and primary (virgin) material embodied energies. Negative Btu/lb means that the manufacturing process using the recycled material shows lower burdens. Any additional material recycled is also credited to the product to reflect the good end-of-life performance of product under consideration. For simplicity, the amount of energy needed for deconstruction, sorting, processing, and shipping is not considered.
B117: Disposal energy use per unit mass (SECONDARY Disposal Method) - material # 1 (applicable for all other disposal methods except open or closed-loop recycling - user input) (EEM1,other, Smode) | C117: Btu/lb | D117: 18271.7275 | E117: This is the amount of energy needed for disposing material 1 using the disposal method other than open or closed-loop recycling. If the disposal method is combustion, energy use per unit mass may be negative.
B118: Disposal (End of Life) energy use per part - Material # 1 | C118: Btu/part | D118: =IF(D110="Open-loop Recycling", D15*D9*(D111*D112),IF(D110="Closed-loop Recycling", D15*D9*(D111*D112),D15*D9*(D111*D113)))+IF(D114="Open-loop Recycling", D15*D9*(D115*D116),IF(D114="Closed-loop Recycling", D15*D9*(D115*D116),D15*D9*(D115*D117))) -> 233.878112 | E118: The total disposal energy use per part for Material # 1. Negative energy use per part in disposal phase means that the manufacturing process using the recycled material shows lower burdens. Any additional material recycled is also credited to the product to reflect the good end-of-life performance of product under consideration.
B119: PRIMARY disposal method for material # 2 (DISPM2,Pmode) | C119: Select | D119: Open-loop Recycling | E119: Please select primary disposal method option for material # 2 – Landfill, Combustion or incineration, Composting, Open-loop recycling, Closed-loop recycling, or Other (Re-engineering/Reuse). In open-loop recycling, products are recycled into new products that are eventually disposed of. In closed-loop recycling, products are recycled again and again into the same product.
B120: Fraction of material # 2 disposed through the selected PRIMARY disposal method (DISPM2,%, Pmode) | C120: % of final part mass | D120: 0.9 | E120: A fraction of material # 2 disposed using user selected primary disposal method
B121: Disposal energy use per unit mass (PRIMARY Disposal Method) - material # 2 (applicable only if open or closed-loop recycling selected - calculated) (EEsM,2 - EEpM,2) | C121: Btu/lb | D121: =(D22-D21) -> -34393.84 | E121: This is the difference between secondary (recycled) and primary (virgin) material embodied energies. Negative Btu/lb means that the manufacturing process using the recycled material shows lower burdens. Any additional material recycled is also credited to the product to reflect the good end-of-life performance of product under consideration. For simplicity, the amount of energy needed for deconstruction, sorting, processing, and shipping is not considered.
B122: Disposal energy use per unit mass (PRIMARY Disposal Method) - material # 2 (applicable for all other disposal methods except open or closed-loop recycling - user input) (EEM2,other, Pmode) | C122: Btu/lb | D122: 1000 | E122: This is the amount of energy needed for disposing material 2 using the disposal method other than open or closed-loop recycling. If the disposal method is combustion, energy use per unit mass may be negative.
B123: SECONDARY disposal method for material # 2 (DISPM2,Smode) | C123: Select | D123: Abandon in Place | E123: Please select secondary disposal method option for material # 2 – Landfill, Combustion or incineration, Composting, Open-loop recycling, Closed-loop recycling, or Other (Re-engineering/Reuse). In open-loop recycling, products are recycled into new products that are eventually disposed of. In closed-loop recycling, products are recycled again and again into the same product.
B124: Fraction of material # 2 disposed through the selected SECONDARY disposal method (DISPM2,%, Smode) | C124: % of final part mass | D124: =(1-D120) -> 0.1 | E124: A fraction of material # 2 disposed using user selected secondary disposal method
B125: Disposal energy use per unit mass (SECONDARY Disposal Method) - material # 2 (applicable only if open or closed-loop recycling selected - calculated) (EEsM,2 - EEpM,2) | C125: Btu/lb | D125: =(D22-D21) -> -34393.84 | E125: This is the difference between secondary (recycled) and primary (virgin) material embodied energies. Negative Btu/lb means that the manufacturing process using the recycled material shows lower burdens. Any additional material recycled is also credited to the product to reflect the good end-of-life performance of product under consideration. For simplicity, the amount of energy needed for deconstruction, sorting, processing, and shipping is not considered.
B126: Disposal energy use per unit mass (SECONDARY Disposal Method) - material # 2 (applicable for all other disposal methods except open or closed-loop recycling - user input) (EEM1,other, Smode) | C126: Btu/lb | D126: 1000 | E126: This is the amount of energy needed for disposing material 2 using the disposal method other than open or closed-loop recycling. If the disposal method is combustion, energy use per unit mass may be negative.
B127: Disposal (End of Life) energy use per part - Material # 2 | C127: Btu/part | D127: =IF(D119="Open-loop Recycling", D15*D11*(D120*D121),IF(D119="Closed-loop Recycling", D15*D11*(D120*D121),D15*D11*(D120*D122)))+IF(D123="Open-loop Recycling", D15*D11*(D124*D125),IF(D123="Closed-loop Recycling", D15*D11*(D124*D125),D15*D11*(D124*D126))) -> -493.671296 | E127: The total disposal energy use per part for Material # 2. Negative energy use per part in disposal phase means that the manufacturing process using the recycled material shows lower burdens. Any additional material recycled is also credited to the product to reflect the good end-of-life performance of product under consideration.
B128: Disposal (End of Life) energy use per part (DISP_EU) | C128: Btu/part | D128: =IF(D9=1,D118,(D118+D127)) -> -259.793184 | E128: The total disposal energy use per part – the fifth bar of the bar chart. Negative energy use per part in disposal phase means that the manufacturing process using the recycled material shows lower burdens than for using virgin materials. Any additional material recycled is also credited to the product to reflect the good end-of-life performance of product under consideration.

Sheet Results (1)
B2: Summary Results: | C2: ='Product or Project Details'!D3 -> Part name
B4: Energy Use per Part:
B6: Life Cycle Phases | C6: Unit | D6: Conventional Manufacturing | E6: Additive Manufacturing
B7: Material Energy | C7: Btu/part | D7: ='CM Calculator'!D20 -> 5836.849609 | E7: ='AM Calculator (1)'!D23 -> 5902.799798
B8: Manufacturing Energy | C8: Btu/part | D8: ='CM Calculator'!D42 -> 857.696385 | E8: ='AM Calculator (1)'!D76 -> 7882.208282
B9: Freight and Distribution Energy | C9: Btu/part | D9: ='CM Calculator'!D56 -> 29385.691 | E9: ='AM Calculator (1)'!D90 -> 361.9718639
B10: Use Phase Energy | C10: Btu/part | D10: ='CM Calculator'!D74 -> 3091633.978 | E10: ='AM Calculator (1)'!D109 -> 2863829.369
B11: Disposal (End of Life) Energy Use* | C11: Btu/part | D11: ='CM Calculator'!D93 -> 802.416626 | E11: ='AM Calculator (1)'!D128 -> 743.2911904
B12: Total Energy Use per Part | C12: Btu/part | D12: =SUM(D7:D11) -> 3128516.631 | E12: =SUM(E7:E11) -> 2878719.64
B13: * Negative energy use per part in disposal phase means that the manufacturing process using the recycled material shows lower burdens than for using virgin materials. Any additional material recycled is also credited to the product to reflect the good end-of-life performance of product under consideration.
B15: Energy and Energy Cost Savings per Part: | N15: Current Fuel Prices:
B17: Provide Unit Energy Prices by each life cycle phase | C17: Input Parameter | D17: Unit | E17: Value | F17: Tool Guidance | N17: Fuel Type | O17: Typical Energy prices ($/MMBtu) | P17: Conversion Factors
C18: Material related unit energy price | D18: $/MMBtu | E18: 5 | F18: Typically, material manufacturing industry uses coal, coke, electricity, natural gas, and fuel oils. | N18: Coal | O18: 2.08 | P18: 13,000 Btu/lb
C19: Manufacturing related unit enegry price | D19: $/MMBtu | E19: 5 | F19: Typically manufacturing industry uses electricity, natural gas, coal and fuel oils. | N19: Natural Gas | O19: 5.69 | P19: 102,900 Btu/Therm
C20: Freight and Distribution related unit enegry price | D20: $/MMBtu | E20: 16 | F20: Typically transportation industry uses gasoline or diesel as their primary fuels. | N20: # 2 Heating Oil | O20: 14.74 | P20: 138,000 Btu/gal
C21: Use phase related unit enegry price | D21: $/MMBtu | E21: 15 | F21: If the use phase sector is aerospcae industry - jet fuel, if the use phase is in passenger vehicles, trucks, trains - gasoline or diesel. | N21: Jet Fuel | O21: 15.48 | P21: 135,000 Btu/gal
C22: Disposal (End of Life) related unit enegry price | D22: $/MMBtu | E22: 4 | F22: It's a combination of gasoline (for transportation), electricity (for sorting and processing), natural gas (for incineration), etc. | N22: Diesel | O22: 15.59 | P22: 131,000 Btu/gal
N23: Gasoline | O23: 17.81 | P23: 115,000 Btu/gal
N24: Electricity | O24: 26.31 | P24: 3,412 Btu/kWh
B25: Life Cycle Phases | D25: Energy Savings per Part (Btu/part) (+ve numbers mean savings) | E25: Energy Cost Savings per Part ($/part) (+ve numbers mean savings) | N25: Source: http://www.forbes.com/sites/energysource/2010/01/26/the-price-of-energy/
B26: Material | D26: =D7-E7 -> -65.9501882 | E26: =D26*E18/1000000 -> -0.000329750941
B27: Manufacturing | D27: =D8-E8 -> -7024.511897 | E27: =D27*E19/1000000 -> -0.03512255948
B28: Freight and Distribution | D28: =D9-E9 -> 29023.71914 | E28: 0.4643795062
B29: Use Phase | D29: =D10-E10 -> 227804.6089 | E29: 3.417069133
B30: Disposal (End of Life) | D30: =D11-E11 -> 59.1254356 | E30: 0.0002365017424
B31: Total Energy Savings per Part | D31: =SUM(D26:D30) -> 249796.9914 | E31: 3.846232831
B33: Summary of Key Inputs and Assumptions:
Y34: =E26 -> -0.000329750941
B35: Life Cycle Phase | C35: Parameter | E35: Unit | F35: Conventional Manufacturing | G35: Additive Manufacturing | Y35: -0.03512255948
B37: Manufacturing Process | C37: Process Name | F37: ='CM Calculator'!$D$22 -> Polymers - Molding | G37: ='AM Calculator (1)'!$D$7 -> Fused Deposition Modeling (FDM) of Polymers | Y37: =E28 -> 0.4643795062
Y38: =E29 -> 3.417069133
B39: Material | C39: Material # 1 consumed to produce final part | E39: Material | F39: ='CM Calculator'!$D$7 -> ULTEM 9085 - Pellets | G39: ='AM Calculator (1)'!$D$8 -> ULTEM 9085 - Extruded Filament | Y39: =E30 -> 0.0002365017424
C40: Material # 1 amount - % of total initial mass | E40: % | F40: ='CM Calculator'!$D$8 -> 0.8 | G40: ='AM Calculator (1)'!D9 -> 0.8 | Y40: =E31 -> 3.846232831
C41: Material # 1 embodied energy (primary or virgin) | E41: Btu/lb | F41: ='CM Calculator'!$D$16 -> 56319.913 | G41: ='AM Calculator (1)'!D19 -> 58469.528
C42: Material # 1 embodied energy (recycled engineered scrap) | E42: Btu/lb | F42: ='CM Calculator'!$D$17 -> 56319.913 | G42: ='AM Calculator (1)'!D20 -> 58469.528
C43: Material # 2 consumed to produce final part | F43: =IF($F$40=1,"NA",'CM Calculator'!$D$9) -> Polyamide (nylon) | G43: =IF($G$40=1,"NA",'AM Calculator (1)'!D10) -> Polyamide (nylon)
C44: Material # 2 Amount - % of total initial mass | E44: % | F44: =IF($F$40=1,"NA",'CM Calculator'!D10) -> 0.2 | G44: =IF($G$40=1,"NA",'AM Calculator (1)'!D11) -> 0.2
C45: Material # 2 embodied energy (primary or virgin) | E45: Btu/lb | F45: =IF($F$40=1,"NA",'CM Calculator'!D18) -> 52665.5675 | G45: =IF($G$40=1,"NA",'AM Calculator (1)'!D21) -> 52665.5675
C46: Material # 2 embodied energy (recycled engineered scrap) | E46: Btu/lb | F46: =IF($F$40=1,"NA",'CM Calculator'!D19) -> 18271.7275 | G46: =IF($G$40=1,"NA",'AM Calculator (1)'!D22) -> 18271.7275
C47: Total input material initial mass | E47: lb/part | F47: ='CM Calculator'!D11 -> 0.105 | G47: ='AM Calculator (1)'!D14 -> 0.103
C48: Final part mass | E48: lb/part | F48: ='CM Calculator'!D12 -> 0.095 | G48: ='AM Calculator (1)'!D15 -> 0.088
C49: % Reduction in material Initial mass w.r.t. CM Process | E49: % | F49: NA | G49: ='AM Calculator (1)'!D12 -> 0.01904761905
C50: % Reduction in Final part mass w.r.t. CM Process | E50: % | F50: NA | G50: ='AM Calculator (1)'!D13 -> 0.07368421053
B52: Manufacturing | C52: Primary Manufacturing Process | E52: Manufacturing Process | F52: ='CM Calculator'!$D$22 -> Polymers - Molding | G52: ='AM Calculator (1)'!$D$7 -> Fused Deposition Modeling (FDM) of Polymers
C53: Analysis Level | F53: NA | G53: ='AM Calculator (1)'!$D$24 -> Simple
C54: Primary Manufacturing Process Energy Intensity | E54: Btu/lb | F54: ='CM Calculator'!$D$23 -> 8168.537 | G54: =IF('AM Calculator (1)'!$D$24="Simple",'AM Calculator (1)'!$D$25,IF('AM Calculator (1)'!$D$24="Intermediate",'AM Calculator (1)'!$D$25-('AM Calculator (1)'!$D$43*'AM Calculator (1)'!$D$42)-('AM Calculator (1)'!$D$46*'AM Calculator (1)'!$D$45),'AM Calculator (1)'!$D$75-('AM Calculator (1)'!$D$71*'AM Calculator (1)'!$D$70)-('AM Calculator (1)'!$D$74*'AM Calculator (1)'!$D$73))) -> 76526.294
C55: Secondary Process (machining/joining/finishing) | F55: ='CM Calculator'!$D$24 -> None | G55: =IF('AM Calculator (1)'!$D$24="Simple",'AM Calculator (1)'!$D$26,IF('AM Calculator (1)'!$D$24="Intermediate",'AM Calculator (1)'!$D$41,'AM Calculator (1)'!$D$69)) -> Other Secondary Process
C56: Secondary Process Energy Intensity | E56: Btu/lb | F56: ='CM Calculator'!$D$25 -> 0 | G56: =IF('AM Calculator (1)'!$D$24="Simple",'AM Calculator (1)'!$D$27,IF('AM Calculator (1)'!$D$24="Intermediate",'AM Calculator (1)'!$D$42,'AM Calculator (1)'!$D$70)) -> 0
C57: Tertiary Process (machining/joining/finishing) | F57: ='CM Calculator'!$D$27 -> None | G57: NA
C58: Tertiary Process Energy Intensity | E58: Btu/lb | F58: ='CM Calculator'!$D$28 -> 0 | G58: NA
B60: Freight & Distribution | C60: Analysis Level | F60: ='CM Calculator'!$D$43 -> Simple | G60: ='AM Calculator (1)'!$D$77 -> Simple
C61: Freight and distribution method (Primary Mode) | E61: Primary Mode | F61: =IF('CM Calculator'!$D$43="Simple", 'CM Calculator'!$D$44,'CM Calculator'!$D$50) -> Airplane | G61: =IF('AM Calculator (1)'!$D$77="Simple", 'AM Calculator (1)'!$D$78,'AM Calculator (1)'!$D$84) -> Ship
C62: Freight and distribution average energy use (Primary Mode) | E62: Btu/lb.mile | F62: =IF('CM Calculator'!$D$43="Simple", 'CM Calculator'!$D$45,'CM Calculator'!$D$51) -> 24.75601099 | G62: =IF('AM Calculator (1)'!$D$77="Simple", 'AM Calculator (1)'!$D$79,'AM Calculator (1)'!$D$85) -> 0.8369083567
C63: Average freight and distribution distance travelled by a part by primary mode | E63: miles/mode | F63: =IF('CM Calculator'!$D$43="Simple", 'CM Calculator'!$D$46,'CM Calculator'!$D$52) -> 12000 | G63: =IF('AM Calculator (1)'!$D$77="Simple", 'AM Calculator (1)'!$D$80,'AM Calculator (1)'!$D$86) -> 4000
C64: Freight and distribution method (Secondary Mode) | E64: Secondary Mode | F64: =IF('CM Calculator'!$D$43="Simple", 'CM Calculator'!$D$47,'CM Calculator'!$D$53) -> Long-Distance Truck | G64: =IF('AM Calculator (1)'!$D$77="Simple", 'AM Calculator (1)'!$D$81,'AM Calculator (1)'!$D$87) -> Long-Distance Truck
C65: Freight and distribution average energy use (Secondary Mode) | E65: Btu/lb.mile | F65: =IF('CM Calculator'!$D$43="Simple", 'CM Calculator'!$D$48,'CM Calculator'!$D$54) -> 3.062732833 | G65: =IF('AM Calculator (1)'!$D$77="Simple", 'AM Calculator (1)'!$D$82,'AM Calculator (1)'!$D$88) -> 3.062732833
C66: Average freight and distribution distance travelled by a part by secondary mode | E66: miles/mode | F66: =IF('CM Calculator'!$D$43="Simple", 'CM Calculator'!$D$49,'CM Calculator'!$D$55) -> 4000 | G66: =IF('AM Calculator (1)'!$D$77="Simple", 'AM Calculator (1)'!$D$83,'AM Calculator (1)'!$D$89) -> 250
B68: Use Phase | C68: If the use phase is in transportation sector:
C69: Typical life-span of the product manufactured using conventional method | E69: ='CM Calculator'!$C$57 -> Years | F69: ='CM Calculator'!$D$57 -> 30 | G69: ='AM Calculator (1)'!$D$91 -> 30
C70: Sector/application area where this part is being used | F70: ='CM Calculator'!$D$58 -> Transportation | G70: ='AM Calculator (1)'!$D$92 -> Transportation
C71: Fuel and mobility type | F71: ='CM Calculator'!$D$61 -> Short haul aircraft - Kerosene | G71: ='AM Calculator (1)'!$D$95 -> Short haul aircraft - Kerosene
C72: Average energy use | E72: Btu/lb.mile | F72: ='CM Calculator'!$D$62 -> 2.182237776 | G72: ='AM Calculator (1)'!$D$96 -> 2.182237776
C73: Distance travelled per day | E73: miles/day | F73: ='CM Calculator'!$D$63 -> 2485.485 | G73: ='AM Calculator (1)'!$D$97 -> 2485.485
C74: Usage | E74: days/year | F74: ='CM Calculator'!$D$64 -> 200 | G74: ='AM Calculator (1)'!$D$98 -> 200
C75: If the use phase is in other sectors:
C76: Does this product require energy to perform its function? | F76: ='CM Calculator'!$D$69 -> No | G76: ='AM Calculator (1)'!$D$103 -> Yes
C77: Energy conversion type | F77: ='CM Calculator'!$D$70 -> Electric to Thermal | G77: ='AM Calculator (1)'!$D$104 -> Fossil fuel to Mechanical
C78: Average power drawn by the system while in operation | E78: KW | F78: ='CM Calculator'!$D$71 -> 0 | G78: ='AM Calculator (1)'!$D$105 -> 0
C79: Improvement in system efficiency from scenario 1 to 2 (only used while comparing CM and AM scenarios) | E79: % | F79: NA | G79: ='AM Calculator (1)'!$D$106 -> 0
C80: Approximate Usage (days per year) | E80: days/year | F80: ='CM Calculator'!$D$72 -> 0 | G80: ='AM Calculator (1)'!$D$107 -> 0
C81: Approximate Usage (hours per day) | E81: hr/day | F81: ='CM Calculator'!$D$73 -> 0 | G81: ='AM Calculator (1)'!$D$108 -> 0
B83: Disposal (End of Life) | C83: PRIMARY disposal method for material # 1 | F83: ='CM Calculator'!$D$75 -> Landfill | G83: ='AM Calculator (1)'!$D$110 -> Landfill
C84: Fraction of material # 1 disposed through the selected PRIMARY disposal method | E84: % of final part mass | F84: ='CM Calculator'!$D$76 -> 1 | G84: ='AM Calculator (1)'!$D$111 -> 1
C85: Disposal energy use per unit mass (PRIMARY Disposal Method) - material # 1 (applicable only if open or closed-loop recycling selected - calculated) | E85: Btu/lb | F85: ='CM Calculator'!$D$77 -> 0 | G85: ='AM Calculator (1)'!$D$112 -> 0
C86: Disposal energy use per unit mass (PRIMARY Disposal Method) - material # 1 (applicable for all other disposal methods except open or closed-loop recycling - user input) | E86: Btu/lb | F86: ='CM Calculator'!$D$78 -> 18271.7275 | G86: ='AM Calculator (1)'!$D$113 -> 18271.7275
C87: SECONDARY disposal method for material # 1 | E87: Select | F87: ='CM Calculator'!$D$79 -> Landfill | G87: ='AM Calculator (1)'!$D$114 -> Landfill
C88: Fraction of material # 1 disposed through the selected SECONDARY disposal method | E88: % of final part mass | F88: ='CM Calculator'!$D$80 -> 0 | G88: ='AM Calculator (1)'!$D$115 -> 0
C89: Disposal energy use per unit mass (SECONDARY Disposal Method) - material # 1 (applicable only if open or closed-loop recycling selected - calculated) | E89: Btu/lb | F89: ='CM Calculator'!$D$81 -> 0 | G89: ='AM Calculator (1)'!$D$116 -> 0
C90: Disposal energy use per unit mass (SECONDARY Disposal Method) - material # 1 (applicable for all other disposal methods except open or closed-loop recycling - user input) | E90: Btu/lb | F90: ='CM Calculator'!$D$82 -> 18271.7275 | G90: ='AM Calculator (1)'!$D$117 -> 18271.7275
C92: PRIMARY disposal method for material # 2 | F92: =IF($F$40=1,"NA",'CM Calculator'!D84) -> Open-loop Recycling | G92: =IF($G$40=1,"NA",'AM Calculator (1)'!$D$119) -> Open-loop Recycling
C93: Fraction of material # 2 disposed through the selected PRIMARY disposal method | E93: % of final part mass | F93: =IF($F$40=1,"NA",'CM Calculator'!D85) -> 0.9 | G93: =IF($G$40=1,"NA",'AM Calculator (1)'!$D$120) -> 0.9
C94: Disposal energy use per unit mass (PRIMARY Disposal Method) - material # 2 (applicable only if open or closed-loop recycling selected - calculated) | E94: Btu/lb | F94: =IF($F$40=1,"NA",'CM Calculator'!D86) -> -34393.84 | G94: =IF($G$40=1,"NA",'AM Calculator (1)'!$D$121) -> -34393.84
C95: Disposal energy use per unit mass (PRIMARY Disposal Method) - material # 2 (applicable for all other disposal methods except open or closed-loop recycling - user input) | E95: Btu/lb | F95: =IF($F$40=1,"NA",'CM Calculator'!D87) -> 1000 | G95: =IF($G$40=1,"NA",'AM Calculator (1)'!$D$122) -> 1000
C96: SECONDARY disposal method for material # 2 | E96: Select | F96: =IF($F$40=1,"NA",'CM Calculator'!D88) -> Abandon in Place | G96: =IF($G$40=1,"NA",'AM Calculator (1)'!$D$123) -> Abandon in Place
C97: Fraction of material # 2 disposed through the selected SECONDARY disposal method | E97: % of final part mass | F97: =IF($F$40=1,"NA",'CM Calculator'!D89) -> 0.1 | G97: =IF($G$40=1,"NA",'AM Calculator (1)'!$D$124) -> 0.1
C98: Disposal energy use per unit mass (SECONDARY Disposal Method) - material # 2 (applicable only if open or closed-loop recycling selected - calculated) | E98: Btu/lb | F98: =IF($F$40=1,"NA",'CM Calculator'!D90) -> -34393.84 | G98: =IF($G$40=1,"NA",'AM Calculator (1)'!$D$125) -> -34393.84
C99: Disposal energy use per unit mass (SECONDARY Disposal Method) - material # 2 (applicable for all other disposal methods except open or closed-loop recycling - user input) | E99: Btu/lb | F99: =IF($F$40=1,"NA",'CM Calculator'!D91) -> 1000 | G99: =IF($G$40=1,"NA",'AM Calculator (1)'!$D$126) -> 1000

Sheet AM Advanced Method (hidden)
A1: Input | B1: Unit | C1: Value | D1: Assumptions
A2: Build Time Estimation: The estimate for total build time, TBuild, is obtained by combining data from a hierarchy of elements of time consumption.
A3: Part name | B3: Name | C3: ='CM Calculator'!D3 -> Part XYZ
A4: Fixed time consumption per build operation, TJob | B4: seconds | D4: For example, machine atmosphere generation and machine warm-up
A5: Fixed time consumption per layer, TPer_Layer | B5: seconds per layer
A6: The total number of build layers, l | B6: number
A7: Total layer dependent time consumption, TLayer | B7: seconds | C7: =C5*C6 -> 0 | D7: Obtained by multiplying the fixed time consumption per layer, TLayer, by the total number of build layers l;
A8: The total build time needed for the deposition of part geometry approximated by the voxels, TVoxel | B8: seconds | D8: The summation of the time needed to process each voxel, TVoxel xyz, in a three-dimensional array representing the discretized build configuration
A9: Build Time (TBuild = TJob + TLayer + TVoxel) | B9: seconds | C9: =C4+C7+C8 -> 0 | D9: A voxel (volumetric pixel or Volumetric Picture Element) is a volume element, representing a value on a regular grid in three dimensional space.
A10: Energy Consumption Estimation:
A11: Fixed energy consumption per build operation, EJob | B11: MJ | D11: EJob contains all energy consumption attributable to the build job, including energy consumed by the wire erosion process to remove the parts from the build plate.
A12: Time-dependent energy consumption rate ETime_Rate | B12: MJ/second | D12: A purely time-dependent element of power consumption must be expected in the continuous operation of the AM machine. This is denoted by the energy consumption rate ETime_Rate (measured in MJ/s), which is multiplied by TBuild to estimate total time-dependent energy consumption. Modeling ETime as a constant reflects its interpretation as a mean baseline level of energy consumption throughout the build, originating from continuously operating machine components such as cooling fans, pumps, and the control system.
A13: Time-dependent energy consumption ETime = ETime_Rate * TBuild | B13: MJ | C13: =C12*C9 -> 0
A14: Fixed energy consumption per layer, EPer_Layer | B14: MJ per layer
A15: The total number of build layers, l | B15: number | C15: =C6 -> 0
A16: Total layer dependent energy consumption, ELayer | B16: MJ | C16: =C14*C15 -> 0 | D16: Analogous to build time estimation, ELayer denotes fixed elements of energy consumption per build and layer, for a total number of layers, l.
A17: The energy needed for the deposition of part geometry approximated by the voxels, EVoxel | B17: MJ
A18: Build Energy Consumption (EBuild = EJob + (ETime_Rate × TBuild) + (EPer_Layer × l ) + EVoxel | B18: MJ | C18: =C11+(C12*C9)+(C14*C15)+C17 -> 0
A19: Manufacturing Embodied Energy Estimation:
A20: Build Energy Consumption per Part | B20: MJ
A21: Final part mass | B21: kg
A22: Manufacturing Embodied Energy | B22: MJ/kg | C22: =IF(C21=0,0,C20/C21) -> 0

Sheet Results (2) (hidden)
B2: Summary Results: | C2: ='Product or Project Details'!D3 -> Part name
B4: Energy Use per Part:
B6: Life Cycle Phases | C6: Unit | D6: Additive Manufacturing 1 | E6: Additive Manufacturing 2
B7: Material Energy | C7: Btu/part | D7: ='AM Calculator (2)'!D23 -> 5902.799798 | E7: ='AM Calculator (1)'!D23 -> 5902.799798
B8: Manufacturing Energy | C8: Btu/part | D8: ='AM Calculator (2)'!D76 -> 7882.208282 | E8: ='AM Calculator (1)'!D76 -> 7882.208282
B9: Freight and Distribution Energy | C9: Btu/part | D9: ='AM Calculator (2)'!D90 -> 329.0653308 | E9: ='AM Calculator (1)'!D90 -> 361.9718639
B10: Use Phase Energy | C10: Btu/part | D10: ='AM Calculator (2)'!D109 -> 2603481.244 | E10: ='AM Calculator (1)'!D109 -> 2863829.369
B11: Disposal (End of Life) Energy Use* | C11: Btu/part | D11: ='AM Calculator (2)'!D128 -> -259.793184 | E11: ='AM Calculator (1)'!D128 -> 743.2911904
B12: Total Energy Use per Part | C12: Btu/part | D12: =SUM(D7:D11) -> 2617335.525 | E12: =SUM(E7:E11) -> 2878719.64
B13: * Negative energy use per part in disposal phase means that the manufacturing process using the recycled material shows lower burdens than for using virgin materials. Any additional material recycled is also credited to the product to reflect the good end-of-life performance of product under consideration.
B15: Energy and Energy Cost Savings per Part: | N15: Current Fuel Prices:
B17: Provide Unit Energy Prices by each life cycle phase | C17: Input Parameter | D17: Unit | E17: Value | F17: Tool Guidance | N17: Fuel Type | O17: Typical Energy prices ($/MMBtu) | P17: Conversion Factors
C18: Material related unit energy price | D18: $/MMBtu | E18: 5 | F18: Typically, material manufacturing industry uses coal, coke, electricity, natural gas, and fuel oils. | N18: Coal | O18: 2.08 | P18: 13,000 Btu/lb
C19: Manufacturing related unit enegry price | D19: $/MMBtu | E19: 5 | F19: Typically manufacturing industry uses electricity, natural gas, coal and fuel oils. | N19: Natural Gas | O19: 5.69 | P19: 102,900 Btu/Therm
C20: Freight and Distribution related unit enegry price | D20: $/MMBtu | E20: 16 | F20: Typically transportation industry uses gasoline or diesel as their primary fuels. | N20: # 2 Heating Oil | O20: 14.74 | P20: 138,000 Btu/gal
C21: Use phase related unit enegry price | D21: $/MMBtu | E21: 15 | F21: If the use phase sector is aerospcae industry - jet fuel, if the use phase is in passenger vehicles, trucks, trains - gasoline or diesel. | N21: Jet Fuel | O21: 15.48 | P21: 135,000 Btu/gal
C22: Disposal (End of Life) related unit enegry price | D22: $/MMBtu | E22: 4 | F22: It's a combination of gasoline (for transportation), electricity (for sorting and processing), natural gas (for incineration), etc. | N22: Diesel | O22: 15.59 | P22: 131,000 Btu/gal
N23: Gasoline | O23: 17.81 | P23: 115,000 Btu/gal
N24: Electricity | O24: 26.31 | P24: 3,412 Btu/kWh
B25: Life Cycle Phases | D25: Energy Savings per Part (Btu/part) (+ve numbers mean savings) | E25: Energy Cost Savings per Part ($/part) (+ve numbers mean savings) | N25: Source: http://www.forbes.com/sites/energysource/2010/01/26/the-price-of-energy/
B26: Material | D26: =D7-E7 -> 0 | E26: =D26*E18/1000000 -> 0
B27: Manufacturing | D27: =D8-E8 -> 0 | E27: =D27*E19/1000000 -> 0
B28: Freight and Distribution | D28: =D9-E9 -> -32.90653308 | E28: -0.0005265045293
B29: Use Phase | D29: =D10-E10 -> -260348.1244 | E29: -3.905221867
B30: Disposal (End of Life) | D30: =D11-E11 -> -1003.084374 | E30: -0.004012337498
B31: Total Energy Savings per Part | D31: =SUM(D26:D30) -> -261384.1153 | E31: -3.909760709
B33: Summary of Assumptions:
Y34: =E26 -> 0
B35: Life Cycle Phase | C35: Parameter | E35: Unit | F35: Additive Manufacturing (1) | G35: Additive Manufacturing (2) | Y35: 0
B37: Manufacturing Process | C37: Process Name | F37: ='AM Calculator (2)'!$D$7 -> Fused Deposition Modeling (FDM) of Polymers | G37: ='AM Calculator (1)'!$D$7 -> Fused Deposition Modeling (FDM) of Polymers | Y37: =E28 -> -0.0005265045293
Y38: =E29 -> -3.905221867
B39: Material | C39: Material # 1 consumed to produce final part | E39: Material | F39: ='AM Calculator (1)'!$D$8 -> ULTEM 9085 - Extruded Filament | G39: ='AM Calculator (2)'!$D$8 -> ULTEM 9085 - Extruded Filament | Y39: =E30 -> -0.004012337498
C40: Material # 1 amount - % of total initial mass | E40: % | F40: ='AM Calculator (1)'!$D$9 -> 0.8 | G40: ='AM Calculator (2)'!$D$9 -> 0.8 | Y40: =E31 -> -3.909760709
C41: Material # 1 embodied energy (primary or virgin) | E41: Btu/lb | F41: ='AM Calculator (1)'!$D$19 -> 58469.528 | G41: ='AM Calculator (2)'!$D$19 -> 58469.528
C42: Material # 1 embodied energy (recycled engineered scrap) | E42: Btu/lb | F42: ='AM Calculator (1)'!$D$20 -> 58469.528 | G42: ='AM Calculator (2)'!$D$20 -> 58469.528
C43: Material # 2 consumed to produce final part | F43: =IF($F$40=1,"NA",'AM Calculator (1)'!$D$10) -> Polyamide (nylon) | G43: =IF($G$40=1,"NA",'AM Calculator (2)'!$D$10) -> Polyamide (nylon)
C44: Material # 2 Amount - % of total initial mass | E44: % | F44: =IF($F$40=1,"NA",'AM Calculator (1)'!$D$11) -> 0.2 | G44: =IF($G$40=1,"NA",'AM Calculator (2)'!$D$11) -> 0.2
C45: Material # 2 embodied energy (primary or virgin) | E45: Btu/lb | F45: =IF($F$40=1,"NA",'AM Calculator (1)'!$D$21) -> 52665.5675 | G45: =IF($G$40=1,"NA",'AM Calculator (2)'!$D$21) -> 52665.5675
C46: Material # 2 embodied energy (recycled engineered scrap) | E46: Btu/lb | F46: =IF($F$40=1,"NA",'AM Calculator (1)'!$D$22) -> 18271.7275 | G46: =IF($G$40=1,"NA",'AM Calculator (2)'!$D$22) -> 18271.7275
C47: Total input material initial mass | E47: lb/part | F47: ='AM Calculator (1)'!$D$14 -> 0.103 | G47: ='AM Calculator (2)'!$D$14 -> 0.103
C48: Final part mass | E48: lb/part | F48: ='AM Calculator (1)'!$D$15 -> 0.088 | G48: ='AM Calculator (2)'!$D$15 -> 0.08
C49: % Reduction in material Initial mass w.r.t. CM Process | E49: % | F49: ='AM Calculator (1)'!$D$12 -> 0.01904761905 | G49: ='AM Calculator (2)'!$D$12 -> 0.01904761905
C50: % Reduction in Final part mass w.r.t. CM Process | E50: % | F50: ='AM Calculator (1)'!$D$13 -> 0.07368421053 | G50: ='AM Calculator (2)'!$D$13 -> 0.1578947368
B52: Manufacturing | C52: Primary Manufacturing Process | E52: Manufacturing Process | F52: ='AM Calculator (1)'!$D$7 -> Fused Deposition Modeling (FDM) of Polymers | G52: ='AM Calculator (2)'!$D$7 -> Fused Deposition Modeling (FDM) of Polymers
C53: Analysis Level | F53: ='AM Calculator (1)'!$D$24 -> Simple | G53: ='AM Calculator (2)'!$D$24 -> Simple
C54: Primary Manufacturing Process Energy Intensity | E54: Btu/lb | F54: =IF('AM Calculator (1)'!$D$24="Simple",'AM Calculator (1)'!$D$25,IF('AM Calculator (1)'!$D$24="Intermediate",'AM Calculator (1)'!$D$25-('AM Calculator (1)'!$D$43*'AM Calculator (1)'!$D$42)-('AM Calculator (1)'!$D$46*'AM Calculator (1)'!$D$45),'AM Calculator (1)'!$D$75-('AM Calculator (1)'!$D$71*'AM Calculator (1)'!$D$70)-('AM Calculator (1)'!$D$74*'AM Calculator (1)'!$D$73))) -> 76526.294 | G54: =IF('AM Calculator (2)'!$D$24="Simple",'AM Calculator (2)'!$D$25,IF('AM Calculator (2)'!$D$24="Intermediate",'AM Calculator (2)'!$D$25-('AM Calculator (2)'!$D$43*'AM Calculator (2)'!$D$42)-('AM Calculator (2)'!$D$46*'AM Calculator (2)'!$D$45),'AM Calculator (2)'!$D$75-('AM Calculator (2)'!$D$71*'AM Calculator (2)'!$D$70)-('AM Calculator (2)'!$D$74*'AM Calculator (2)'!$D$73))) -> 76526.294
C55: Secondary Process (machining/joining/finishing) | F55: =IF('AM Calculator (1)'!$D$24="Simple",'AM Calculator (1)'!$D$26,IF('AM Calculator (1)'!$D$24="Intermediate",'AM Calculator (1)'!$D$41,'AM Calculator (1)'!$D$69)) -> Other Secondary Process | G55: =IF('AM Calculator (2)'!$D$24="Simple",'AM Calculator (2)'!$D$26,IF('AM Calculator (2)'!$D$24="Intermediate",'AM Calculator (2)'!$D$41,'AM Calculator (2)'!$D$69)) -> Other Secondary Process
C56: Secondary Process Energy Intensity | E56: Btu/lb | F56: =IF('AM Calculator (1)'!$D$24="Simple",'AM Calculator (1)'!$D$27,IF('AM Calculator (1)'!$D$24="Intermediate",'AM Calculator (1)'!$D$42,'AM Calculator (1)'!$D$70)) -> 0 | G56: =IF('AM Calculator (2)'!$D$24="Simple",'AM Calculator (2)'!$D$27,IF('AM Calculator (2)'!$D$24="Intermediate",'AM Calculator (2)'!$D$42,'AM Calculator (2)'!$D$70)) -> 0
C57: Tertiary Process (machining/joining/finishing) | F57: NA | G57: NA
C58: Tertiary Process Energy Intensity | E58: Btu/lb | F58: NA | G58: NA
B60: Freight & Distribution | C60: Analysis Level | F60: ='AM Calculator (1)'!$D$77 -> Simple | G60: ='AM Calculator (2)'!$D$77 -> Simple
C61: Freight and distribution method (Primary Mode) | E61: Primary Mode | F61: =IF('AM Calculator (1)'!$D$77="Simple", 'AM Calculator (1)'!$D$78,'AM Calculator (1)'!$D$84) -> Ship | G61: =IF('AM Calculator (2)'!$D$77="Simple", 'AM Calculator (2)'!$D$78,'AM Calculator (2)'!$D$84) -> Ship
C62: Freight and distribution average energy use (Primary Mode) | E62: Btu/lb.mile | F62: =IF('AM Calculator (1)'!$D$77="Simple", 'AM Calculator (1)'!$D$79,'AM Calculator (1)'!$D$85) -> 0.8369083567 | G62: =IF('AM Calculator (2)'!$D$77="Simple", 'AM Calculator (2)'!$D$79,'AM Calculator (2)'!$D$85) -> 0.8369083567
C63: Average freight and distribution distance travelled by a part by primary mode | E63: miles/mode | F63: =IF('AM Calculator (1)'!$D$77="Simple", 'AM Calculator (1)'!$D$80,'AM Calculator (1)'!$D$86) -> 4000 | G63: =IF('AM Calculator (2)'!$D$77="Simple", 'AM Calculator (2)'!$D$80,'AM Calculator (2)'!$D$86) -> 4000
C64: Freight and distribution method (Secondary Mode) | E64: Secondary Mode | F64: =IF('AM Calculator (1)'!$D$77="Simple", 'AM Calculator (1)'!$D$81,'AM Calculator (1)'!$D$87) -> Long-Distance Truck | G64: =IF('AM Calculator (2)'!$D$77="Simple", 'AM Calculator (2)'!$D$81,'AM Calculator (2)'!$D$87) -> Long-Distance Truck
C65: Freight and distribution average energy use (Secondary Mode) | E65: Btu/lb.mile | F65: =IF('AM Calculator (1)'!$D$77="Simple", 'AM Calculator (1)'!$D$82,'AM Calculator (1)'!$D$88) -> 3.062732833 | G65: =IF('AM Calculator (2)'!$D$77="Simple", 'AM Calculator (2)'!$D$82,'AM Calculator (2)'!$D$88) -> 3.062732833
C66: Average freight and distribution distance travelled by a part by secondary mode | E66: miles/mode | F66: =IF('AM Calculator (1)'!$D$77="Simple", 'AM Calculator (1)'!$D$83,'AM Calculator (1)'!$D$89) -> 250 | G66: =IF('AM Calculator (2)'!$D$77="Simple", 'AM Calculator (2)'!$D$83,'AM Calculator (2)'!$D$89) -> 250
B68: Use Phase | C68: If the use phase is in transportation sector:
C69: Typical life-span of the product manufactured using conventional method | E69: ='CM Calculator'!$C$57 -> Years | F69: ='AM Calculator (1)'!$D$91 -> 30 | G69: ='AM Calculator (2)'!$D$91 -> 30
C70: Sector/application area where this part is being used | F70: ='AM Calculator (1)'!$D$92 -> Transportation | G70: ='AM Calculator (2)'!$D$92 -> Transportation
C71: Fuel and mobility type | F71: ='AM Calculator (1)'!$D$95 -> Short haul aircraft - Kerosene | G71: ='AM Calculator (2)'!$D$95 -> Long haul aircraft - Kerosene
C72: Average energy use | E72: Btu/lb.mile | F72: ='AM Calculator (1)'!$D$96 -> 2.182237776 | G72: ='AM Calculator (2)'!$D$96 -> 2.182237776
C73: Distance travelled per day | E73: miles/day | F73: ='AM Calculator (1)'!$D$97 -> 2485.485 | G73: ='AM Calculator (2)'!$D$97 -> 2485.485
C74: Usage | E74: days/year | F74: ='AM Calculator (1)'!$D$98 -> 200 | G74: ='AM Calculator (2)'!$D$98 -> 200
C75: If the use phase is in other sectors:
C76: Does this product require energy to perform its function? | F76: ='AM Calculator (1)'!$D$103 -> Yes | G76: ='AM Calculator (2)'!$D$103 -> No
C77: Energy conversion type | F77: ='AM Calculator (1)'!$D$104 -> Fossil fuel to Mechanical | G77: ='AM Calculator (2)'!$D$104 -> Fossil fuel to Mechanical
C78: Average power drawn by the system while in operation | E78: KW | F78: ='AM Calculator (1)'!$D$105 -> 0 | G78: ='AM Calculator (2)'!$D$105 -> 0
C79: Improvement in system efficiency from scenario 1 to 2 (only used while comparing CM and AM scenarios) | E79: % | F79: ='AM Calculator (1)'!$D$106 -> 0 | G79: ='AM Calculator (2)'!$D$106 -> 0
C80: Approximate Usage (days per year) | E80: days/year | F80: ='AM Calculator (1)'!$D$107 -> 0 | G80: ='AM Calculator (2)'!$D$107 -> 0
C81: Approximate Usage (hours per day) | E81: hr/day | F81: ='AM Calculator (1)'!$D$108 -> 0 | G81: ='AM Calculator (2)'!$D$108 -> 0
B83: Disposal (End of Life) | C83: PRIMARY disposal method for material # 1 | F83: ='AM Calculator (1)'!$D$110 -> Landfill | G83: ='AM Calculator (2)'!$D$110 -> Closed-loop Recycling
C84: Fraction of material # 1 disposed through the selected PRIMARY disposal method | E84: % of final part mass | F84: ='AM Calculator (1)'!$D$111 -> 1 | G84: ='AM Calculator (2)'!$D$111 -> 0.8
C85: Disposal energy use per unit mass (PRIMARY Disposal Method) - material # 1 (applicable only if open or closed-loop recycling selected - calculated) | E85: Btu/lb | F85: ='AM Calculator (1)'!$D$112 -> 0 | G85: ='AM Calculator (2)'!$D$112 -> 0
C86: Disposal energy use per unit mass (PRIMARY Disposal Method) - material # 1 (applicable for all other disposal methods except open or closed-loop recycling - user input) | E86: Btu/lb | F86: ='AM Calculator (1)'!$D$113 -> 18271.7275 | G86: ='AM Calculator (2)'!$D$113 -> 18271.7275
C87: SECONDARY disposal method for material # 1 | E87: Select | F87: ='AM Calculator (1)'!$D$114 -> Landfill | G87: ='AM Calculator (2)'!$D$114 -> Landfill
C88: Fraction of material # 1 disposed through the selected SECONDARY disposal method | E88: % of final part mass | F88: ='AM Calculator (1)'!$D$115 -> 0 | G88: ='AM Calculator (2)'!$D$115 -> 0.2
C89: Disposal energy use per unit mass (SECONDARY Disposal Method) - material # 1 (applicable only if open or closed-loop recycling selected - calculated) | E89: Btu/lb | F89: ='AM Calculator (1)'!$D$116 -> 0 | G89: ='AM Calculator (2)'!$D$116 -> 0
C90: Disposal energy use per unit mass (SECONDARY Disposal Method) - material # 1 (applicable for all other disposal methods except open or closed-loop recycling - user input) | E90: Btu/lb | F90: ='AM Calculator (1)'!$D$117 -> 18271.7275 | G90: ='AM Calculator (2)'!$D$117 -> 18271.7275
C92: PRIMARY disposal method for material # 2 | F92: =IF($F$40=1,"NA",'AM Calculator (1)'!$D$119) -> Open-loop Recycling | G92: =IF($G$40=1,"NA",'AM Calculator (2)'!$D$119) -> Open-loop Recycling
C93: Fraction of material # 2 disposed through the selected PRIMARY disposal method | E93: % of final part mass | F93: =IF($F$40=1,"NA",'AM Calculator (1)'!$D$120) -> 0.9 | G93: =IF($G$40=1,"NA",'AM Calculator (2)'!$D$120) -> 0.9
C94: Disposal energy use per unit mass (PRIMARY Disposal Method) - material # 2 (applicable only if open or closed-loop recycling selected - calculated) | E94: Btu/lb | F94: =IF($F$40=1,"NA",'AM Calculator (1)'!$D$121) -> -34393.84 | G94: =IF($G$40=1,"NA",'AM Calculator (2)'!$D$121) -> -34393.84
C95: Disposal energy use per unit mass (PRIMARY Disposal Method) - material # 2 (applicable for all other disposal methods except open or closed-loop recycling - user input) | E95: Btu/lb | F95: =IF($F$40=1,"NA",'AM Calculator (1)'!$D$122) -> 1000 | G95: =IF($G$40=1,"NA",'AM Calculator (2)'!$D$122) -> 1000
C96: SECONDARY disposal method for material # 2 | E96: Select | F96: =IF($F$40=1,"NA",'AM Calculator (1)'!$D$123) -> Abandon in Place | G96: =IF($G$40=1,"NA",'AM Calculator (2)'!$D$123) -> Abandon in Place
C97: Fraction of material # 2 disposed through the selected SECONDARY disposal method | E97: % of final part mass | F97: =IF($F$40=1,"NA",'AM Calculator (1)'!$D$124) -> 0.1 | G97: =IF($G$40=1,"NA",'AM Calculator (2)'!$D$124) -> 0.1
C98: Disposal energy use per unit mass (SECONDARY Disposal Method) - material # 2 (applicable only if open or closed-loop recycling selected - calculated) | E98: Btu/lb | F98: =IF($F$40=1,"NA",'AM Calculator (1)'!$D$125) -> -34393.84 | G98: =IF($G$40=1,"NA",'AM Calculator (2)'!$D$125) -> -34393.84
C99: Disposal energy use per unit mass (SECONDARY Disposal Method) - material # 2 (applicable for all other disposal methods except open or closed-loop recycling - user input) | E99: Btu/lb | F99: =IF($F$40=1,"NA",'AM Calculator (1)'!$D$126) -> 1000 | G99: =IF($G$40=1,"NA",'AM Calculator (2)'!$D$126) -> 1000

Sheet Embodied Energy - Material
A1: Material | B1: Material Embodied Energy (MJ/kg) (Primary or Virgin) | C1: Material Embodied Energy (MJ/kg) (Secondary or Recycled) | D1: Material Embodied Energy (Btu/lb) (Primary or Virgin) | E1: Material Embodied Energy (Btu/lb) (Secondary or Recycled) | F1: Source
A2: Select | B2: 0 | C2: =0.75*'Embodied Energy - Material'!$B2 -> 0 | D2: =B2*429.923 -> 0 | E2: =C2*429.923 -> 0 | F2: NA | I2: Data not available
A3: None | B3: 0 | C3: 0 | D3: =B3*429.923 -> 0 | E3: =C3*429.923 -> 0 | F3: NA | I3: Derived or calculated
A4: Acrylonitrile Butadiene Styrene (ABS) - Extruded Filament | B4: 95 | C4: =(C5/B5)*B4 -> 46.74603175 | D4: =B4*429.923 -> 40842.685 | E4: =C4*429.923 -> 20097.19421 | F4: 9 & 1 | H4: 1 MJ/kg = 429.923 Btu/lb
A5: Acrylonitrile Butadiene Styrene (ABS) - Pellets | B5: =(90+99)/2 -> 94.5 | C5: =(42+51)/2 -> 46.5 | D5: 40627.7235 | E5: 19991.4195 | F5: 1
A6: Aluminum | B6: =(200+220)/2 -> 210 | C6: =(22+30)/2 -> 26 | D6: 90283.83 | E6: 11177.998 | F6: 1
A7: Aluminum alloys | B7: =(200+220)/2 -> 210 | C7: =(22+30)/2 -> 26 | D7: =B7*429.923 -> 90283.83 | E7: =C7*429.923 -> 11177.998 | F7: 1
A8: Blended PC-ABS - Extruded Filament | B8: 107 | C8: NA | D8: 46001.761 | E8: NA | F8: 9
A9: Blended PC-ABS - Pellets | B9: 103 | C9: NA | D9: 44282.069 | E9: NA | F9: 9
A10: Cast Aluminum (Primary, average) | B10: 58 | C10: 23 | D10: 24935.534 | E10: 9888.229 | F10: 1
A11: Cast iron, ductile | B11: =(16+20)/2 -> 18 | C11: =(10+11)/2 -> 10.5 | D11: =B11*429.923 -> 7738.614 | E11: =C11*429.923 -> 4514.1915 | F11: 1
A12: Carbon fiber (polyolefin-based) | B12: 388 | C12: 388 | D12: 166810.124 | E12: 166810.124 | F12: 1
A13: Carbon fiber reinforced polymer (CFRP) | B13: =(450+500)/2 -> 475 | C13: =(450+500)/2 -> 475 | D13: 204213.425 | E13: 204213.425 | F13: 1
A14: Cobalt-chromium alloys | B14: 370 | C14: =(C23/B23)*B14 -> 67.27272727 | D14: 159071.51 | E14: 28922.09273 | F14: 1
A15: Copper alloys | B15: =(56+62)/2 -> 59 | C15: =(12+15)/2 -> 13.5 | D15: =B15*429.923 -> 25365.457 | E15: =C15*429.923 -> 5803.9605 | F15: 1
A16: Glass, soda-lime | B16: =(10+11)/2 -> 10.5 | C16: =(7.4+9)/2 -> 8.2 | D16: 4514.1915 | E16: 3525.3686 | F16: 1
A17: Glass, borosilicate (Pyrex) | B17: =(27+30)/2 -> 28.5 | C17: =(20+23)/2 -> 21.5 | D17: =B17*429.923 -> 12252.8055 | E17: =C17*429.923 -> 9243.3445 | F17: 1
A18: Glass fiber | B18: =(62.2+68.8)/2 -> 65.5 | C18: =B18 -> 65.5 | D18: =B18*429.923 -> 28159.9565 | E18: =C18*429.923 -> 28159.9565 | F18: 1
A19: Glass fiber reinforced polymer (GFRP) | B19: =(107+118)/2 -> 112.5 | C19: =(107+118)/2 -> 112.5 | D19: 48366.3375 | E19: 48366.3375 | F19: 1
A20: Gold | B20: =(240000+265000)/2 -> 252500 | C20: =(650+719)/2 -> 684.5 | D20: 108555557.5 | E20: 294282.2935 | F20: 1
A21: Lead alloys | B21: =(26+28)/2 -> 27 | C21: =(6.7+8.2)/2 -> 7.45 | D21: =B21*429.923 -> 11607.921 | E21: =C21*429.923 -> 3202.92635 | F21: 1
A22: Magnesium Alloys | B22: =(300+330)/2 -> 315 | C22: =(23+26)/2 -> 24.5 | D22: 135425.745 | E22: 10533.1135 | F22: 1
A23: Nickel-chromium alloys | B23: =(173+190)/2 -> 181.5 | C23: =(30+36)/2 -> 33 | D23: =B23*429.923 -> 78031.0245 | E23: =C23*429.923 -> 14187.459 | F23: 1
A24: Nickel-based super alloys | B24: =(221+244)/2 -> 232.5 | C24: =(33.8+37.5)/2 -> 35.65 | D24: =B24*429.923 -> 99957.0975 | E24: =C24*429.923 -> 15326.75495 | F24: 1
A25: Phenolics | B25: =(75+83)/2 -> 79 | C25: =B25 -> 79 | D25: =B25*429.923 -> 33963.917 | E25: =C25*429.923 -> 33963.917 | F25: 1
A26: Polyamide (nylon) | B26: =(116+129)/2 -> 122.5 | C26: =(38+47)/2 -> 42.5 | D26: 52665.5675 | E26: 18271.7275 | F26: 7
A27: Polycarbonate (PC) - Extruded Filament | B27: 114 | C27: =(C28/B28)*B27 -> 44.65437788 | D27: 49011.222 | E27: 19197.9441 | F27: 9 & 1
A28: Polycarbonate (PC) - Pellets | B28: =(103+114)/2 -> 108.5 | C28: =(38+47)/2 -> 42.5 | D28: 46646.6455 | E28: 18271.7275 | F28: 1
A29: Polyethylene (PE) | B29: =(77+85)/2 -> 81 | C29: =(45+55)/2 -> 50 | D29: =B29*429.923 -> 34823.763 | E29: =C29*429.923 -> 21496.15 | F29: 1
A30: Polyphenylsulfone (PPSU or PPSF) - Extruded Filament | B30: 175 | C30: NA | D30: 75236.525 | E30: NA | F30: 9
A31: Polyphenylsulfone (PPSU or PPSF) - Pellets | B31: 170 | C31: NA | D31: 73086.91 | E31: NA | F31: 9
A32: Polypropylene | B32: =(75+83)/2 -> 79 | C32: =(45+55)/2 -> 50 | D32: 33963.917 | E32: 21496.15 | F32: 1
A33: Polystyrene | B33: =(92+102)/2 -> 97 | C33: =(43+52)/2 -> 47.5 | D33: 41702.531 | E33: 20421.3425 | F33: 1
A34: PrimePart FR (PA 2241 FR) | B34: 96.5 | C34: NA | D34: 41487.5695 | E34: NA | F34: 7
A35: PrimePart ST (PEBA) | B35: 96.5 | C35: NA | D35: 41487.5695 | E35: NA | F35: 7
A36: Rubber, natural | B36: =(64+71)/2 -> 67.5 | C36: =B36 -> 67.5 | D36: 29019.8025 | E36: 29019.8025 | F36: 1
A37: Silver | B37: =(1400+1550)/2 -> 1475 | C37: =(140+170)/2 -> 155 | D37: 634136.425 | E37: 66638.065 | F37: 1
A38: Steel, low carbon | B38: =(25+28)/2 -> 26.5 | C38: =(6.6+8)/2 -> 7.3 | D38: =B38*429.923 -> 11392.9595 | E38: =C38*429.923 -> 3138.4379 | F38: 1
A39: Steel, low alloy | B39: =(31+34)/2 -> 32.5 | C39: =(7.7+9.5)/2 -> 8.6 | D39: 13972.4975 | E39: 3697.3378 | F39: 1
A40: Stainless steel | B40: =(81+88)/2 -> 84.5 | C40: =(11+13)/2 -> 12 | D40: 36328.4935 | E40: 5159.076 | F40: 1
A41: Titanium alloy (Ti-6Al-4V) | B41: 612.5 | C41: =(78+96)/2 -> 87 | D41: 263327.8375 | E41: 37403.301 | F41: 1
A42: Titanium alloy powder (Ti-6Al-4V) | B42: =B41+14.8 -> 627.3 | C42: =((78+96)/2)+(B42-B41) -> 101.8 | D42: 269690.6979 | E42: 43766.1614 | F42: Ti alloy + atomization (14.8 MJ/kg)
A43: ULTEM 9085 - Extruded Filament | B43: 136 | C43: =B43 -> 136 | D43: 58469.528 | E43: 58469.528 | F43: 9
A44: ULTEM 9085 - Pellets | B44: 131 | C44: =B44 -> 131 | D44: 56319.913 | E44: 56319.913 | F44: 9
A45: Zinc | B45: 51 | C45: =(C46/B46)*B45 -> 9.35 | D45: =B45*429.923 -> 21926.073 | E45: =C45*429.923 -> 4019.78005 | F45: 2
A46: Zinc die-casting alloys | B46: =(57+63)/2 -> 60 | C46: =(10+12)/2 -> 11 | D46: =B46*429.923 -> 25795.38 | E46: =C46*429.923 -> 4729.153 | F46: 1
A47: User Defined 1 | D47: 0 | E47: 0 | F47: User defined
A48: User Defined 2 | D48: 0 | E48: 0 | F48: User defined
A49: User Defined 3 | D49: 0 | E49: 0 | F49: User defined
A50: User Defined 4 | D50: 0 | E50: 0 | F50: User defined
A51: User Defined 5 | D51: 0 | E51: 0 | F51: User defined
A52: User Defined 6 | D52: 0 | E52: 0 | F52: User defined
A53: User Defined 7 | D53: 0 | E53: 0 | F53: User defined
A54: User Defined 8 | D54: 0 | E54: 0 | F54: User defined
A55: User Defined 9 | D55: 0 | E55: 0 | F55: User defined
A56: User Defined 10 | D56: 0 | E56: 0 | F56: User defined
A58: Sources: see the reference tab for more details.
A59: 1. [M. ASHBY]
A60: 2. [VICTORIA]
A61: 3. [KEOUGH 2011]
A62: 4. [ATKINS 2011]
A63: 5. [HAMMOND & JONES 2011]
A64: 6. [GHENAI 2012]
A65: 7. [PENN STATE]
A66: 8. [STODOLSKY & VYAS 1995]
A67: 9. [STRATASYS 2010]
A70: Cutting Tool Materials Embodied Energy:
A71: Raw Material | B71: Raw Material Embodied Energy (MJ/kg) (Primary or Virgin) | C71: Raw Material Embodied Energy (Btu/lb) (Primary or Virgin) | D71: Source
A72: Select | B72: 0 | C72: =B72*429.923 -> 0 | D72: NA
A73: None | B73: 0 | C73: =B73*429.923 -> 0 | D73: NA
A74: Carbon tool steels | B74: 32.5 | C74: 13972.4975 | D74: 3
A75: High speed steel (HSS) | B75: 84.5 | C75: 36328.4935 | D75: 3
A76: Cast cobalt alloys | B76: =(80+295)/2 -> 187.5 | C76: 80610.5625 | D76: 2
A77: Cemented carbide | B77: =(750+1250)/2 -> 1000 | C77: 429923 | D77: 2
A78: Ceramics (alumina, silicon nitride, silicon carbide) | B78: =(750+1250)/2 -> 1000 | C78: 429923 | D78: 2
A79: Cubic Boron Nitride (CBN) | B79: =(200+300)/2 -> 250 | C79: 107480.75 | D79: 2
A80: Tungsten Carbide (WC) | B80: 400 | C80: 171969.2 | D80: 1
A82: Sources: see the reference tab for more details.
A83: 1. [DAHMUS 2004]
A84: 2. [AZOM]
A85: 3. [M. ASHBY]

Sheet Embodied Energy - Process
A1: Primary shaping processes | B1: Average Energy Intensity (MJ/kg) | C1: Average Energy Intensity (Btu/lb) | D1: Data Source
A2: None | B2: 0 | C2: =B2*429.923 -> 0 | D2: [M. ASHBY] | E2: 1 MJ/kg = 429.923 Btu/lb
A3: Metals - Casting | B3: =(8+12)/2 -> 10 | C3: =B3*429.923 -> 4299.23
A4: Metals - Rough rolling, forging | B4: =(3+5)/2 -> 4 | C4: 1719.692
A5: Metals - Extrusion, foil rolling | B5: =(10+20)/2 -> 15 | C5: 6448.845
A6: Metals - Wire drawing | B6: =(20+40)/2 -> 30 | C6: 12897.69
A7: Metals - Metal powder forming | B7: =(20+30)/2 -> 25 | C7: 10748.075
A8: Metals - Vapor phase methods | B8: =(40+60)/2 -> 50 | C8: 21496.15
A9: Polymers - Extrusion | B9: =(3.1+5.4)/2 -> 4.25 | C9: 1827.17275
A10: Polymers - Molding | B10: =(11+27)/2 -> 19 | C10: 8168.537
A11: Ceramic powder form | B11: =(20+30)/2 -> 25 | C11: 10748.075
A12: Glass molding | B12: =(2+4)/2 -> 3 | C12: 1289.769
A13: Hybrids - Compression molding | B13: =(11+16)/2 -> 13.5 | C13: 5803.9605
A14: Hybrids - Spray/Lay up | B14: =(14+18)/2 -> 16 | C14: 6878.768
A15: Hybrids - Filament winding | B15: =(2.7+4)/2 -> 3.35 | C15: 1440.24205
A16: Hybrids - Autoclave molding | B16: =(100+300)/2 -> 200 | C16: 85984.6
A17: Other Primary Process | C17: =B17*429.923 -> 0 | D17: User defined
A19: Secondary Processes | B19: Average Energy Intensity (MJ/kg) | C19: Average Energy Intensity (Btu/lb) | D19: Data Source
A20: None | B20: 0 | C20: =B20*429.923 -> 0 | D20: [M. ASHBY]
A21: Machining - Heavy | B21: =(0.8+2.5)/2 -> 1.65 | C21: =B21*429.923 -> 709.37295
A22: Machining - Finishing (light) | B22: =(6+10)/2 -> 8 | C22: 3439.384
A23: Machining - Grinding | B23: =(25+35)/2 -> 30 | C23: 12897.69
A24: Machining - Water jet, EDM, Laser | B24: =(500+5000)/2 -> 2750 | C24: 1182288.25
A25: Joining - Gas welding | B25: =(1+2.8)/2 -> 1.9 | C25: 816.8537
A26: Joining - Electric welding | B26: =(1.7+3.5)/2 -> 2.6 | C26: 1117.7998
A27: Joining - Fasteners, small | B27: =(0.02+0.04)/2 -> 0.03 | C27: 12.89769
A28: Joining - Fasteners, large | B28: =(0.05+0.1)/2 -> 0.075 | C28: 32.244225
A29: Joining - Adhesives, cold | B29: =(7+14)/2 -> 10.5 | C29: 4514.1915
A30: Joining - Adhesives, heat-curing | B30: =(18+40)/2 -> 29 | C30: 12467.767
A31: Painting - Painting | B31: =(50+60)/2 -> 55 | C31: 23645.765
A32: Painting - Baked coatings | B32: =(60+70)/2 -> 65 | C32: 27944.995
A33: Painting - Powder coating | B33: =(67+86)/2 -> 76.5 | C33: 32889.1095
A34: Electroplating | B34: =(80+100)/2 -> 90 | C34: 38693.07
A35: Other Secondary Process | C35: =B35*429.923 -> 0 | D35: User defined
E37: Dummy Data
A39: Additive Manufacturing Processes | B39: Average Energy Intensity (MJ/kg) | C39: Average Energy Intensity (Btu/lb) | D39: Data Source
A40: None | B40: 0 | C40: =B40*429.923 -> 0
A41: Powder Bed Fusion Processes (average) | B41: =AVERAGE(B42:B44) -> 131.8316667 | C41: =B41*429.923 -> 56677.46563 | D41: Average (Calculated)
A42: Selective Laser Melting (SLM) | B42: =(96.82+139.5)/2 -> 118.16 | C42: 50799.70168 | D42: 2
A43: Direct Metal Laser Sintering (DMLS) | B43: =(115.2+201.6)/2 -> 158.4 | C43: 68099.8032 | D43: 2
A44: Electron Beam Melting (EBM) | B44: =(61.2+176.67)/2 -> 118.935 | C44: 51132.89201 | D44: 2
A45: Directed Energy Deposition Processes (average) | B45: =AVERAGE(B46:B49) -> 118.195 | C45: 50814.74898 | D45: Average (Calculated)
A46: Laser Engineered Net Shaping (LENS) | B46: =(52.2+144.32)/2 -> 98.26 | C46: 42244.23398 | D46: Assumed (equal to DMD)
A47: Direct Metal Deposition (DMD) | B47: =(52.2+144.32)/2 -> 98.26 | C47: 42244.23398 | D47: 2
A48: Direct Manufacturing (DM) | B48: =(52.2+144.32)/2 -> 98.26 | C48: 42244.23398 | D48: Assumed (equal to DMD)
A49: Fused Deposition Modeling (FDM) of Polymers | B49: 178 | C49: 76526.294 | D49: 3
A50: Other AM Process | C50: 0 | D50: User defined
A52: This is a chart based on the 7 Process Categories by ASTM F42 (Kelly's email: 09/05/2013).
A53: Process Type | B53: Ex. Companies | C53: Materials | D53: Average Energy Intensity (MJ/kg) | E53: Average Energy Intensity (Btu/lb)
A54: Powder Bed Fusion | B54: EOS (Germany), 3D Systems (US), Arcam (Sweden) | C54: Metals, Polymers
A55: Directed Energy Deposition | B55: Optomec (US), | C55: Metals
B56: POM (US)
A57: Material Extrusion | B57: Stratasys (Israel), | C57: Polymers
B58: Bits from Bytes (UK)
A59: Vat Photopolymerization | B59: 3D Systems (US), | C59: Photopolymers
B60: Envisiontec (Germany)
A61: Binder Jetting | B61: 3D Systems (US), | C61: Polymers, Foundry Sand, Metals
B62: ExOne (US)
A63: Material Jetting | B63: Objet (Israel), | C63: Polymers, Waxes
B64: 3D Systems (US)
A65: Sheet Lamination | B65: Fabrisonic (US), | C65: Paper, Metals
B66: Mcor (Ireland)
A68: Heat Load MJ/hr
A69: Additive Manufacturing Processes | B69: Material Type (1) | C69: Material Type (2) | D69: Material Type (3) | E69: Average
A70: Selective Laser Melting (SLM)
A71: Direct Metal Laser Sintering (DMLS)
A72: Electron Beam Melting (EBM)
A73: Laser Sintering (LS)
A74: Fused Deposition Modeling (FDM) of Polymers | B74: =26000/$B$77 -> 27.43145217 | C74: =18000/$B$77 -> 18.99100535 | D74: =12000/B77 -> 12.66067023 | E74: =AVERAGE('Embodied Energy - Process'!$B74:$D74) -> 19.69437592
A75: Other AM Process | B75: User Input
A77: 1 MJ | B77: 947.8171203
A79: Technology | B79: Machines | C79: Materials | D79: Average Energy Intensity (MJ/kg) | E79: Average Energy Intensity (Btu/lb) | F79: Data Source
A80: Stereolithography | B80: SLA-250 | C80: Epoxy resin (SLA 5170) | D80: 116.928 | E80: =D80*429.923 -> 50270.03654 | F80: 4
B81: SLA-3000 | C81: Epoxy resin (SLA 5170) | D81: 149.076 | E81: =D81*429.923 -> 64091.20115
B82: SLA-5000 | C82: Epoxy resin (SLA 5170) | D82: 74.52 | E82: 32037.86196
A83: Selective Laser Sintering | B83: Sinterstation DTM 2000 | C83: Polyamide | D83: 144.036 | E83: 61924.38923
B84: Sinterstation DTM 2500 | C84: Polyamide | D84: 107.172 | E84: 46075.70776
B85: Vanguard HiQ | C85: Polyamide | D85: 52.344 | E85: 22503.88951
B86: EOSINT (M250 Xtended) | C86: Metalic Powder (Bronze + Ni) | D86: 19.476 | E86: 8373.180348
B87: EOSINT (P760) | C87: Polyamide PA2200 Balance 1.0 | D87: 131.4 | E87: 56491.8822
C88: Polyamide PA2200 Speed 1.1 | D88: 143.28 | E88: 61599.36744
C89: Polyamide PA3200GF | D89: 94.68 | E89: 40705.10964
A90: Fused Deposition Modeling | B90: FDM 1650 | C90: ABS Plastic | D90: 1247.148 | E90: 536177.6096
B91: FDM 2000 | C91: ABS Plastic | D91: 415.728 | E91: 178731.0289
B92: FDM 8000 | C92: ABS Plastic | D92: 83.16 | E92: 35752.39668
B93: FDM Quantum | C93: ABS Plastic | D93: 727.524 | E93: 312779.3007
A94: Selective Laser Melting | B94: MTT SLM 250 | C94: Metalic Powder SAE 316L | D94: 111.6 | E94: 47979.4068
A95: Electron Beam Melting | B95: Arcam A1 | C95: Metalic Powder Ti-6Al-4V | D95: 61.2 | E95: 26311.2876
A98: Sources: see the reference tab for more details.
A99: 1. [BAUMERS 2013]
A100: 2. [STRATASYS 2010]
A101: 3. [BOURHIS 2013]

Sheet Freight or Transportation
A2: Cargo Emissions | B2: Energy Consumption | C2: Fuel Consumption | D2: Energy Consumption | F2: Source:
A3: WWEST | B3: MJ/kg/km | C3: gal/kg/km | D3: Btu/lb/mile
A4: Local Truck | B4: 0.0121995605 | C4: 3.474353441e-05 | D4: =B4*691.8953 -> 8.440818569 | F4: OECD 1997
A5: Long-Distance Truck | B5: 0.004426584244 | C5: 1.260661661e-05 | D5: =B5*691.8953 -> 3.062732833 | F5: Facanha 2007
A6: Ship | B6: 0.001209588151 | C6: 3.444826358e-06 | D6: 0.8369083567 | F6: OECD 1997
A7: Train | B7: 0.0009468629399 | C7: 2.696602484e-06 | D7: 0.6551300178 | F7: Facanha 2007
A8: Airplane | B8: 0.03577999588 | C8: 9.714375266e-05 | D8: 24.75601099 | F8: Facanha 2007
A9: OECD. 1997. The Environmental Effects of Freight. Table 9. Truck Air Pollution Emission Factors, in grams/tonne-km Available at http://www1.oecd.org/ech/pub/TRANSP4.PDF (2003)
A10: Facanha, C., and Horvath, A. (2007). "Evaluation of life-cycle air emission factors of freight transportation." Environmental Science & Technology, 41(20), 7138-7144.
A12: More Cargo Emission | B12: Energy Intensity | C12: Energy Intensity | D12: Energy Intensity
A13: Strogen, 2012 (for shipping liquid fuels or feedstocks) | B13: kJ/t-km | C13: MJ/kg/km | D13: Btu/lb/mile
A14: Train 100-unit | B14: 268 | C14: =B14/1000000 -> 0.000268 | D14: =C14*691.8953 -> 0.1854279404
A15: Truck, Long-Haul Tanker | B15: 1217 | C15: =B15/1000000 -> 0.001217 | D15: =C15*691.8953 -> 0.8420365801
A16: Truck, Short-Haul Tanker | B16: 1537 | C16: 0.001537 | D16: 1.063443076
A17: Truck, Short-Haul Flatbed | B17: 1780 | C17: 0.00178 | D17: 1.231573634
A19: Strogen and Horvath. 2012. Greenhouse Gas Emissions from the Construction, Manufacturing, Operation and Maintenance of US Distribution Infrastructure for Petroleum and Biofuels
A21: Table: The approximate energy of transportation
A22: Source: [M. ASHBY]
A23: Transportation Type | B23: Energy (MJ/kg. Km) | C23: Energy (Btu/lb.mile)
A24: Ocean shipping - Diesel | B24: 0.00016 | C24: =B24*691.8953 -> 0.110703248 | E24: 1 MJ/kg = 429.923 Btu/lb
A25: Coastal shipping - Diesel | B25: 0.00027 | C25: =B25*691.8953 -> 0.186811731 | E25: 1 km = 0.62137 mi
A26: Barge - Diesel | B26: 0.00036 | C26: 0.249082308 | E26: 1 MJ/kg/km = 691.8953 Btu/lb/mile
A27: Rail - Diesel | B27: 0.00025 | C27: 0.172973825
A28: Articulated HGV (up to 55 metric tons) - Diesel | B28: 0.00071 | C28: 0.491245663
A29: 40 metric ton truck - Diesel | B29: 0.00082 | C29: 0.567354146
A30: 32 metric ton truck - Diesel | B30: 0.00094 | C30: 0.650381582
A31: 14 metric ton truck - Diesel | B31: 0.0015 | C31: 1.03784295
A32: Light goods vehicle - Diesel | B32: 0.0025 | C32: 1.72973825
A33: Family car - Diesel | B33: 0.0017 | C33: 1.17622201
A34: Family car - Gasoline | B34: 0.0026 | C34: 1.79892778
A35: Family car - LPG | B35: 0.0039 | C35: 2.69839167
A36: Family car - Hybrid gasoline-electric | B36: 0.00155 | C36: 1.072437715
A37: Super sports car and SUV - Gasoline | B37: 0.0048 | C37: 3.32109744
A38: Long haul aircraft - Kerosene | B38: 0.0065 | C38: 4.49731945
A39: Short haul aircraft - Kerosene | B39: 0.013 | C39: 8.9946389
A40: Helicopter (Eurocopter AS 350) - Kerosene | B40: 0.055 | C40: 38.0542415
A41: Spacecraft | B41: 200 | C41: =B41*429.923 -> 85984.6
A43: Transportation Type | B43: Energy (MJ/kg) | C43: Energy (Btu/lb)
A44: Spacecraft | B44: 200 | C44: =B44*429.923 -> 85984.6
A45: Note: NASA's space shuttle fires its engines for around 8.5 minutes, consuming 1,000 tons of solid propellant (containing 16% aluminium) and an additional 2,000,000 litres of liquid propellant (106,261 kg of liquid hydrogen) to lift the 100,000 kg vehicle (including the 25,000 kg payload) to an altitude of 111 km and an orbital velocity of 30,000 km/h. With a specific energy of 31MJ/kg for aluminum and 143 MJ/kg for liquid hydrogen, the vehicle consumes around 5 TJ of solid propellant and 15 TJ of hydrogen fuel.
A46: Sources: see the reference tab for more details.
A47: 1. [STROGEN & HORVATH 2013]
A48: 2. [M. ASHBY]

Sheet Recycling - End of Life (hidden)
A1: Source: Life-Cycle Assessment, Inventory Guidelines and Principles, B. W. Vigon et. al.
M2: Material | N2: Material Type | O2: Low | P2: High | Q2: Embodied Energy, Recycling (MJ/kg) | R2: Embodied Energy, Recycling (Btu/lb) | S2: Low | T2: High | U2: Recycle fraction in current supply (%)
M3: Regular Steel | N3: Metals and alloys | O3: 6.6 | P3: 8 | Q3: =AVERAGE(O3:P3) -> 7.3 | R3: =Q3*429.923 -> 3138.4379 | S3: 0.4 | T3: 0.44 | U3: =AVERAGE(S3:T3) -> 0.42 | W3: 1 MJ/kg = 429.923 Btu/lb
M4: Low-alloy steel | N4: Metals and alloys | O4: 7.7 | P4: 9.5 | Q4: =AVERAGE(O4:P4) -> 8.6 | R4: =Q4*429.923 -> 3697.3378 | S4: 0.4 | T4: 0.44 | U4: =AVERAGE(S4:T4) -> 0.42 | W4: 1 km = 0.62137 mi
M5: Stainless steels | N5: Metals and alloys | O5: 11 | P5: 13 | Q5: 12 | R5: 5159.076 | S5: 0.35 | T5: 0.4 | U5: 0.375 | W5: 1 MJ/kg/km = 691.8953 Btu/lb/mile
M6: Iron Casting | N6: Metals and alloys | O6: 10 | P6: 11 | Q6: 10.5 | R6: 4514.1915 | S6: 0.66 | T6: 0.72 | U6: 0.69
M7: Cast Aluminum (Primary, average) | N7: Metals and alloys | O7: 22 | P7: 30 | Q7: 26 | R7: 11177.998 | S7: 0.41 | T7: 0.45 | U7: 0.43
M8: Magnesium Alloys | N8: Metals and alloys | O8: 23 | P8: 26 | Q8: 24.5 | R8: 10533.1135 | S8: 0.36 | T8: 0.41 | U8: 0.385
M9: Titanium alloy (Ti-6Al-4V) | N9: Metals and alloys | O9: 78 | P9: 96 | Q9: 87 | R9: 37403.301 | S9: 0.21 | T9: 0.24 | U9: 0.225
M10: Titanium alloy powder (Ti-6Al-4V) | N10: Metals and alloys | O10: 78 | P10: 96 | Q10: =AVERAGE(O10:P10) -> 87 | R10: 37403.301 | S10: 0.21 | T10: 0.24 | U10: =AVERAGE(S10:T10) -> 0.225
M11: Copper & Brass | N11: Metals and alloys | O11: 12 | P11: 15 | Q11: 13.5 | R11: 5803.9605 | S11: 0.4 | T11: 0.45 | U11: 0.425
M12: Lead | N12: Metals and alloys | O12: 6.7 | P12: 8.2 | Q12: 7.45 | R12: 3202.92635 | S12: 0.69 | T12: 0.76 | U12: 0.725
M13: Zinc | N13: Metals and alloys | O13: 10 | P13: 12 | Q13: 11 | R13: 4729.153 | S13: 0.21 | T13: 0.25 | U13: 0.23
M14: Cobalt-chromium alloys | N14: Metals and alloys | O14: 30 | P14: 36 | Q14: 33 | R14: 14187.459 | S14: 0.29 | T14: 0.32 | U14: 0.305
M15: Nickel-based alloys (Inconel 625, 690, 718, and 738) | N15: Metals and alloys | O15: 33.8 | P15: 37.5 | Q15: 35.65 | R15: 15326.75495 | S15: 0.22 | T15: 0.26 | U15: 0.24
M16: Silver | N16: Metals and alloys | O16: 140 | P16: 170 | Q16: 155 | R16: 66638.065 | S16: 0.65 | T16: 0.67 | U16: 0.66
M17: Gold | N17: Metals and alloys | O17: 650 | P17: 719 | Q17: 684.5 | R17: 294282.2935 | S17: 0.4 | T17: 0.44 | U17: 0.42
M18: ABS | N18: Polymers and elastomers | O18: 42 | P18: 51 | Q18: 46.5 | R18: 19991.4195 | S18: 0.038 | T18: 0.042 | U18: 0.04
M19: Polyamide (nylon) | N19: Polymers and elastomers | O19: 38 | P19: 47 | Q19: 42.5 | R19: 18271.7275 | S19: 0.005 | T19: 0.01 | U19: 0.0075
M20: Polypropylene | N20: Polymers and elastomers | O20: 45 | P20: 55 | Q20: 50 | R20: 21496.15 | S20: 0.05 | T20: 0.06 | U20: 0.055
M21: Polyethylene, PE | N21: Polymers and elastomers | O21: 45 | P21: 55 | Q21: 50 | R21: 21496.15 | S21: 0.08 | T21: 0.095 | U21: 0.0875
M22: Polycarbonate, PC | N22: Polymers and elastomers | O22: 38 | P22: 47 | Q22: 42.5 | R22: 18271.7275 | S22: 0.005 | T22: 0.01 | U22: 0.0075
M23: PET | N23: Polymers and elastomers | O23: 35 | P23: 43 | Q23: 39 | R23: 16766.997 | S23: 0.2 | T23: 0.22 | U23: 0.21
M24: PVC | N24: Polymers and elastomers | O24: 32 | P24: 40 | Q24: 36 | R24: 15477.228 | S24: 0.015 | T24: 0.02 | U24: 0.0175
M25: Polystyrene | N25: Polymers and elastomers | O25: 43 | P25: 52 | Q25: 47.5 | R25: 20421.3425 | S25: 0.05 | T25: 0.06 | U25: 0.055
M26: Polyactide, PLA | N26: Polymers and elastomers | O26: 33 | P26: 40 | Q26: 36.5 | R26: 15692.1895 | S26: 0.005 | T26: 0.01 | U26: 0.0075
M27: PHB | N27: Polymers and elastomers | O27: 35 | P27: 43 | Q27: 39 | R27: 16766.997 | S27: 0.005 | T27: 0.01 | U27: 0.0075
M28: ULTEM 9085 - Raw Material | N28: Polymers and elastomers | O28: 38 | P28: 47 | Q28: =AVERAGE(O28:P28) -> 42.5 | R28: 18271.7275 | S28: 0.005 | T28: 0.01 | U28: =AVERAGE(S28:T28) -> 0.0075 | X28: Assumed data
M29: ULTEM 9085 - Extruded Filament | N29: Polymers and elastomers | O29: 38 | P29: 47 | Q29: =AVERAGE(O29:P29) -> 42.5 | R29: 18271.7275 | S29: 0.005 | T29: 0.01 | U29: =AVERAGE(S29:T29) -> 0.0075
M30: PrimePart FR (PA 2241 FR) | N30: Polymers and elastomers | O30: 38 | P30: 47 | Q30: 42.5 | R30: 18271.7275 | S30: 0.005 | T30: 0.01 | U30: 0.0075
M31: PrimePart ST (PEBA) | N31: Polymers and elastomers | O31: 38 | P31: 47 | Q31: 42.5 | R31: 18271.7275 | S31: 0.005 | T31: 0.01 | U31: 0.0075
M32: Epoxy | N32: Polymers and elastomers | O32: 0 | P32: 0 | Q32: =AVERAGE(O32:P32) -> 0 | R32: 0 | S32: 0 | T32: 0 | U32: =AVERAGE(S32:T32) -> 0
M33: Polyester | N33: Polymers and elastomers | O33: 0 | P33: 0 | Q33: 0 | R33: 0 | S33: 0 | T33: 0 | U33: 0
M34: Phenolic | N34: Polymers and elastomers | O34: 0 | P34: 0 | Q34: 0 | R34: 0 | S34: 0 | T34: 0 | U34: 0
M35: Rubber | N35: Polymers and elastomers | O35: 0 | P35: 0 | Q35: 0 | R35: 0 | S35: 0 | T35: 0 | U35: 0
M36: Butyl rubber, BR | N36: Polymers and elastomers | O36: 0 | P36: 0 | Q36: 0 | R36: 0 | S36: 0.02 | T36: 0.041 | U36: 0.0305
M37: EVA | N37: Polymers and elastomers | O37: 42 | P37: 52 | Q37: 47 | R37: 20206.381 | S37: 0.06 | T37: 0.1 | U37: 0.08
M38: Polychloroprene, CR | N38: Polymers and elastomers | O38: 0 | P38: 0 | Q38: 0 | R38: 0 | S38: 0 | T38: 0 | U38: 0
M39: Brick | N39: Ceramics and glasses | O39: 0 | P39: 0 | Q39: 0 | R39: 0 | S39: 0.15 | T39: 0.2 | U39: 0.175
M40: Stone | N40: Ceramics and glasses | O40: 0 | P40: 0 | Q40: 0 | R40: 0 | S40: 0.01 | T40: 0.02 | U40: 0.015
M41: Concrete | N41: Ceramics and glasses | O41: 0.7 | P41: 0.8 | Q41: 0.75 | R41: 322.44225 | S41: 0.125 | T41: 0.15 | U41: 0.1375
M42: Alumina | N42: Ceramics and glasses | O42: 0 | P42: 0 | Q42: 0 | R42: 0 | S42: 0.005 | T42: 0.01 | U42: 0.0075
M43: Soda-lime glass | N43: Ceramics and glasses | O43: 7.4 | P43: 9 | Q43: 8.2 | R43: 3525.3686 | S43: 0.22 | T43: 0.26 | U43: 0.24
M44: Borosilicate glass | N44: Ceramics and glasses | O44: 20 | P44: 23 | Q44: 21.5 | R44: 9243.3445 | S44: 0.18 | T44: 0.23 | U44: 0.205
M45: CFRP | N45: Hybrids: Composites, foams, wood, and paper | O45: 0 | P45: 0 | Q45: 0 | R45: 0 | S45: 0 | T45: 0 | U45: 0
M46: GFRP | N46: Hybrids: Composites, foams, wood, and paper | O46: 0 | P46: 0 | Q46: 0 | R46: 0 | S46: 0 | T46: 0 | U46: 0
M47: Sheet molding compound | N47: Hybrids: Composites, foams, wood, and paper | O47: 0 | P47: 0 | Q47: 0 | R47: 0 | S47: 0 | T47: 0 | U47: 0
M48: Bulk molding compound | N48: Hybrids: Composites, foams, wood, and paper | O48: 0 | P48: 0 | Q48: 0 | R48: 0 | S48: 0 | T48: 0 | U48: 0
M49: Furan-based composites | N49: Hybrids: Composites, foams, wood, and paper | O49: 0 | P49: 0 | Q49: 0 | R49: 0 | S49: 0 | T49: 0 | U49: 0
M50: Rigid polymer foam | N50: Hybrids: Composites, foams, wood, and paper | O50: 0 | P50: 0 | Q50: 0 | R50: 0 | S50: 0 | T50: 0 | U50: 0
M51: Flexible polymer foam | N51: Hybrids: Composites, foams, wood, and paper | O51: 0 | P51: 0 | Q51: 0 | R51: 0 | S51: 0 | T51: 0 | U51: 0
M52: Softwood, along grain | N52: Hybrids: Composites, foams, wood, and paper | O52: 0 | P52: 0 | Q52: 0 | R52: 0 | S52: 0.08 | T52: 0.1 | U52: 0.09
M53: Softwood, across grain | N53: Hybrids: Composites, foams, wood, and paper | O53: 0 | P53: 0 | Q53: 0 | R53: 0 | S53: 0.08 | T53: 0.1 | U53: 0.09
M54: Hardwood, along grain | N54: Hybrids: Composites, foams, wood, and paper | O54: 0 | P54: 0 | Q54: 0 | R54: 0 | S54: 0.08 | T54: 0.1 | U54: 0.09
M55: Hardwood, across grain | N55: Hybrids: Composites, foams, wood, and paper | O55: 0 | P55: 0 | Q55: 0 | R55: 0 | S55: 0.08 | T55: 0.1 | U55: 0.09
M56: Plywood | N56: Hybrids: Composites, foams, wood, and paper | O56: 0 | P56: 0 | Q56: 0 | R56: 0 | S56: 0.01 | T56: 0.02 | U56: 0.015
M57: Paper and cardboard | N57: Hybrids: Composites, foams, wood, and paper | O57: 18 | P57: 21 | Q57: 19.5 | R57: 8383.4985 | S57: 0.7 | T57: 0.74 | U57: 0.72

Sheet Units and Tables (hidden)
A1: Unit Conversions
A2: 1 MJ/kg | B2: =429.923/1000000 -> 0.000429923 | C2: MMBtu/lb
A3: 1 MJ | B3: 0.000947086289 | C3: MMBtu | E3: =(4*B3)*1000000 -> 3788.345156
A4: 1 kg | B4: 2.20462 | C4: lb
A5: 1 watt | B5: 3.412 | C5: BTU/hr
A6: 1 mm | B6: 0.001 | C6: m
A7: 1 mm | B7: 0.039 | C7: inches
A8: 1 kg | B8: 2.204 | C8: lb
A9: 1 kW | B9: 56.91 | C9: BTU/minute
A10: 1 cm3 | B10: 1e-06 | C10: m3
A11: 1 cm3 | B11: 0.061 | C11: inch3
A12: 1 MJ | B12: 948 | C12: BTU
A13: 1 MJ/kg/km | B13: =691.8953/1000000 -> 0.0006918953 | C13: MMBtu/lb/mile
B15: Method | D15: Material_Type
B16: Select | D16: Select
B17: Simple | D17: Metals and alloys
B18: Intermediate | D18: Polymers and elastomers
B19: Advanced | D19: Ceramics and glasses
D20: Hybrids: Composites, foams, wood, and paper
B21: Machine_Model
B22: Select
B23: Model A
B24: Model B
B25: Model C
B26: Model D
B28: Disposal
B29: Select
B30: Landfill
B31: Combustion
B32: Composting
B33: Open-loop Recycling
B34: Closed-loop Recycling
B35: Abandon in Place
B36: Other (Re-engineering/Reuse)
B38: life
B39: Select
B40: # of Cycles
B41: Years
B42: Months
B43: Days
B45: Use_Phase
B46: Select
B47: Transportation
B48: Transportation and Other Sector
B49: Commercial Buildings
B50: Residential
B51: Industry
B54: yes_no
B55: May be
B56: Yes
B57: No
B59: Energy_IO
B60: Electric to Thermal
B61: Electric to Mechanical
B62: Fossil fuel to Thermal
B63: Fossil fuel to Mechanical

Sheet Applications (hidden)
A1: Potential Case Studies
B2: Weight reduction | C2: original material | D2: AM material | E2: Reference
A3: Aerospace
A4: Monitor Arm | B4: 0.395 | C4: Al | D4: Al | E4: ORNL
A5: Ti6Al4V Brackets | B5: 50-80% | C5: Ti64 | D5: Ti64 | E5: ORNL
A6: Seat Buckles | B6: 0.55 | C6: Ti64 | D6: Steel | E6: SAVING project
A7: Hinge Arm Support Fitting | B7: ~60% | C7: Al | D7: Al | E7: EOS
A8: Support Fitting | B8: ~60% | C8: Al | D8: Al | E8: EOS
A9: Door Guide Roller | B9: ~60% | C9: Al | D9: Al | E9: EOS
A10: Latch Housing | B10: ~60% | C10: Al | D10: Al | E10: EOS
A11: Engine cover door hinge | B11: 0.65 | C11: Ti64 | D11: Ti64 | E11: EADS, EOS
A12: Fuel Injection & Swirlers | B12: 0.4 | E12: Morris Technologies, EOS
A14: Automotive
A15: Pump housing | B15: 80%, 43% | C15: Al | D15: Al, ss316l | E15: ORNL
A16: Wheel suspension | B16: 22% front, 35% rear | C16: Al | D16: Al | E16: Rennteam, Within, EOS
A17: Compact stacking of batteries | B17: 0.4 | D17: PA12 | E17: GPR, EOS
A18: Lattice structure break disk | B18: 0.25 | D18: Cobait Chrome | E18: KA RACING, EOS
A19: Drive shaft | B19: 0.7 | C19: Steel | D19: carbon-Ti | E19: U of Warwick, EOS
A21: Industry
A22: Gripper handling adapter | B22: 0.8 | E22: EOS
A23: Diode clamps | E23: EOS
A24: Hydraulic block/manifold | B24: 0.7 | C24: Steel | D24: Maraging steel | E24: 3T, Within, EOS
A25: Heat exchanger | D25: Al | E25: Within, 3T, EOS
A27: Tooling | B27: Cycle time reduction | C27: orginal time | D27: optimized time
A28: Injection moulding | B28: 30-50% | C28: 24s | D28: 13.8s | E28: Polymold BKL
A29: Injection moulding | B29: 0.55 | C29: 90s | D29: 40s | E29: lbc
A30: Die casting | B30: 0.2 | E30: Lbc
A31: Injection moulding | B31: 0.68 | C31: 24s | D31: 7s | E31: EOS
A33: Medical | B33: Other
A34: Implants | B34: Optimized patient match, Improved functionality, and reudced cost | E34: Within, 3T, EOS
B35: Reduce time spent in hospita, minimize follow-up problems, reduce health care costs, and improve quality of life of patients | E35: EOS
A36: Y stet for artery branches | B36: Post processing eliminates sharp edges. Anatomic situation of blood vessels can be reproduced in stent design | E36: EOS
A37: Washing rotor | B37: Customized products and series manufacturing | E37: Hettich, EOS
A38: Surgical instruments | B38: Lightweight, design for functionality | E38: L FHC Inc, DePuy Spine, EOS
A39: Dental coping s and Bridges | E39: EOS
A41: Desing & Lifestyle | B41: Personlization
A42: Lamp
A43: Rings & jewelry
A44: Consumer products
A45: Footwear & Sports

Sheet Use Phase
A2: The approximate energy of transportation - Use Phase*
A3: Transportation Type | B3: Energy (MJ/kg. Km)** | C3: Energy (Btu/lb.mile) | D3: Source
A4: Ocean shipping - Diesel | B4: 0.00016 | C4: =B4*691.8953 -> 0.110703248 | D4: 2
A5: Coastal shipping - Diesel | B5: 0.00027 | C5: =B5*691.8953 -> 0.186811731 | D5: 2 | F5: 1 MJ/kg = 429.923 Btu/lb
A6: Barge - Diesel | B6: 0.00036 | C6: 0.249082308 | D6: 2 | F6: 1 km = 0.62137 mi
A7: Rail - Diesel | B7: =0.3/(100*100) -> 3e-05 | C7: 0.020756859 | D7: 1 | F7: 1 MJ/kg/km = 691.8953 Btu/lb/mile
A8: Articulated HGV (up to 55 metric tons) - Diesel | B8: 0.00071 | C8: 0.491245663 | D8: 2
A9: Articulated truck | B9: =2.1/(100*100) -> 0.00021 | C9: 0.145298013 | D9: 1
A10: 40 metric ton truck - Diesel | B10: 0.00082 | C10: 0.567354146 | D10: 2
A11: 32 metric ton truck - Diesel | B11: 0.00094 | C11: 0.650381582 | D11: 2
A12: 14 metric ton truck - Diesel | B12: 0.0015 | C12: 1.03784295 | D12: 2
A13: Light goods vehicle - Diesel | B13: 0.0025 | C13: 1.72973825 | D13: 2
A14: Family car - Diesel | B14: =10.7/(100*100) -> 0.00107 | C14: 0.740327971 | D14: 1
A15: Family car - Gasoline | B15: =11.3/(100*100) -> 0.00113 | C15: 0.781841689 | D15: 1
A16: Family car - LPG | B16: =11.3/(100*100) -> 0.00113 | C16: 0.781841689 | D16: 1
A17: Family car - Hybrid gasoline-electric | B17: 0.000632 | C17: 0.4372778296 | D17: 3
A18: Electric vehicles | B18: 0.000149 | C18: =B18*691.8953 -> 0.1030923997 | D18: 3
A19: Super sports car and SUV - Gasoline | B19: 0.00104 | C19: 0.719571112 | D19: 2
A20: Airplanes (average)*** | B20: 0.00351 | C20: 2.428552503 | D20: 1,4,5
A21: Long haul aircraft - Kerosene | B21: 0.003154 | C21: 2.182237776 | D21: 1
A22: Short haul aircraft - Kerosene | B22: 0.003154 | C22: 2.182237776 | D22: 1
A23: Helicopter (Eurocopter AS 350) - Kerosene | B23: 0.055 | C23: 38.0542415 | D23: 2
A24: Spacecraft | B24: 200 | C24: =B24*429.923 -> 85984.6 | D24: 4
A25: Note: * In principle, average energy use by mobility type in the use phase should be different from the freight and distribution phase. Use phase energy numbers should be just the additional energy use associated with an increase in mass, whereas freight energy use should include not only the energy use associated with additional mass, but also a share of the baseline energy use needed to move the vehicle even if it were not carrying any weight. **If separate average energy use by mobility type in the use are not available, we are using average energy use from the freight and destribution phase. Those are highlighted in purple color. ***The numbers from these sources are all in savings per aircraft (or fleets of aircraft), rather than per km traveled. We converted to savings per km using an estimate of average miles traveled per aircraft based on Bureau of Transportation Statistics data on total aircraft miles flown in year and number of aircraft in fleet.
A26: Sources: see the reference tab for more details.
A27: 1. [HELMS & LAMBRECHT 2006]
A28: 2. [M. ASHBY]
A29: 3. [GEYER 2012]
A30: 4. [AMERICAN AIRLINES 2007]
A31: 5. [LUFTHANSA 2011]

Sheet References
A1: REFERENCES
A2: Reference | B2: Details
A3: AMERICAN AIRLINES 2007 | B3: "Committed to Preserving the Wonders of Our World," American Airlines, Prepared by AMR, 2007. Available: http://www.aa.com/content/images/amrcorp/amrerr.pdf.
A4: ATKINS 2011 | B4: The Atkins – Rapid Manufacturing a Low Carbon Footprint, http://www.atkins-project.com
A5: AZOM | B5: AZoM.com. An Original Source of AZOM data is Granta Design Limited - www.grantadesign.com and Ceram Research Limited - www.ceram.co.uk.
A6: BAUMERS 2011 | B6: “Energy Inputs to Additive Manufacturing: Does Capacity Utilization Matters?” M. Baumers, C. Tuck, R. Wildman, I. Ashcroft, R. Hague Loughborough University, August 2011.
A7: BAUMERS 2013 | B7: “Transparency Build-in, Energy Consumption and Cost Estimation for Additive Manufacturing,” Martin Baumers, Chris Tuck, et.al., Journal of Industrial Ecology, Volume 17, Issue, 3, pages 418-431, June 2013.
A8: BERGSMA 2013 | B8: “End-of-life Best Approach for Allocating Recycling Benefits in LCAs of Metal Packaging,” Geert Bergsma Maartje Sevenster, February 2013.
A9: BOURHIS 2013 | B9: “Sustainable Manufacturing: Evaluation and Modeling of Environmental Impacts in Additive Manufacturing,” Florent Bourhis, et.al., International Journal for Advanced Manufacturing Technologies, June 2013.
A10: CEEAM 2012 | B10: Components for Energy Efficiency in Transport by Additive Manufacturing (CEEAM2012), http://www2.le.ac.uk/departments/physics/research/src/res/additive.
A11: DAHMUS 2004 | B11: “An Environmental Analysis of Machining,” Jeffrey B. Dahmus and Timothy G. Gutowski, 2004 ASME International Mechanical Engineering Congress and RD&D Expo, November 13-19, 2004, Anaheim, California USA.
A12: DOE AMO | B12: U.S. Department of Energy’s Advanced Manufacturing Office, http://www1.eere.energy.gov/manufacturing
A13: FACANHA & HORVATH 2007 | B13: "Evaluation of life-cycle air emission factors of freight transportation," Facanha, C., and Horvath, A., Environmental Science & Technology, 41(20), Pp 7138-7144, 2007.
A14: GEYER 2012 | B14: “User Guide for Version 3 of the WorldAutoSteel Energy and GHG Model,” Roland Geyer, University of California at Santa Barbara, CA, On Behalf of WorldAutoSteel – World Steel Association January 6, 2012.
A15: GHENAI 2012 | B15: “Sustainable Engineering and Eco Design,” Chaouki Ghenai, Chapter in book: Sustainable Development - Energy, Engineering and Technologies - Manufacturing and Environment, 2012.
A16: HAMMOND & JONES 2011 | B16: “Inventory of Carbon & Energy (ICE),” Geoff Hammond and Craig Jones, Sustainable Energy Research Team (SERT), University of Bath, UK, 2011. http://web.mit.edu/2.813/www/readings/ICEv2.pdf.old
A17: HELMS & LAMBRECHT 2006 | B17: "The potential contribution of light-weighting to reduce transport energy consumption," Helms, H., and U. Lambrecht, The International Journal of Life Cycle Assessment, 2006.
A18: IJAMT 2013 | B18: “Sustainable Manufacturing: Evaluation and Modeling of Environmental Impacts in Additive Manufacturing,” Florent Bourhis, et.al., International Journal for Advanced Manufacturing Technologies, June 2013.
A19: KEOUGH 2011 | B19: “Austempered Ductile Iron (ADI) – A Green Alternative,” J. R. Keough, the American Foundry Society, Schaumburg, Illinois, USA (www.afsinc.org), 2011.
A20: LUFTHANSA 2011 | B20: "Fuel efficiency at the Lufthansa Group - Cutting costs and protecting the environment," Lufthansa Group, 2011. Available: http://www.lufthansagroup.com/fileadmin/downloads/en/LH-fuel-efficiency-0612.pdf.
A21: M. ASHBY | B21: Material and the Environment - Eco-Informed Material Choice, Second Edition, Michael F. Ashby.
A22: MIT 2004 | B22: “An Environmental Analysis of Machining,” Jeffrey Dahmus and Timothy Gutowski, Massachusetts Institute of Technology 2004 ASME International Mechanical Engineering Congress and RD&D Expo November 13-19, 2004, Anaheim, California USA.
A23: OECD 1997 | B23: “The Environmental Effects of Freight”, Table 9, Truck Air Pollution Emission Factors, in grams/tonne-km. Available at http://www.oecd.org/trade/envtrade/2386636.pdf
A24: PENN STATE | B24: Polymer Properties: http://engr.bd.psu.edu/rxm61/METBD470/Lectures/PolymerProperties%20from%20CES.pdf
A25: SAVING 2009 | B25: The SAVING project (Sustainable product development via design optimization and AdditiVe manufacturING), http://www.manufacturingthefuture.co.uk.
A26: STRATASYS 2010 | B26: “The Sustainability of Fused Deposition Modeling - Establishing the Green Credentials,” Stratasys White Paper, 2010.
A27: STROGEN & HORVATH 2013 | B27: “Greenhouse Gas Emissions from the Construction, Manufacturing, Operation and Maintenance of US Distribution Infrastructure for Petroleum and Biofuels,” Bret Strogen and Arpad Horvath, Journal of Infrastructure Systems, Volume 19, Issue 4, Pp 371-383, December 2013.
A28: STODOLSKY & VYAS 1995 | B28: “Life-Cycle Energy Savings Potential from Aluminum-Intensive Vehicles,” F. Stodolsky, A. Vyas, R. Cuenca, and L. Gaines, Transportation Technology R&D Center, Argonne National Laboratory, 1995. http://www.transportation.anl.gov/pdfs/TA/106.pdf
A29: UT AUSTIN 2010 | B29: “Assessing Energy Requirements and Material Flows of Selective Laser Sintering of Nylon Parts,” Telenko, C. and Seepersad, C., Solid Freeform Fabrication Proceedings; Pp 289-297, 2010.
A30: VICTORIA | B30: Embodied Energy Coefficients - Victoria University of Wellington, New Zealand. http://www.victoria.ac.nz/architecture/centres/cbpr/resources/pdfs/ee-coefficients.pdf
A31: VIGON 1992 | B31: Life-Cycle Assessment – Inventory Guidelines and Principles, B. W. Vigon, et.al., November 1992.
